{"text_format":"1","workbook":"xlsx","n_sheets":2,"sheets":["Заявка","DDLSettings"],"not_rendered":{"charts":0,"images":0,"macros":1,"external_links":0,"defined_names":15,"comments":1,"pivot_tables":0},"unopened":[],"bounds":{"document_bytes":16777216,"sheet_cells":100000,"rows_first":2000,"rows_last":500,"rows_between":2000,"halvings":0,"cell_chars":16384,"cell_head_chars":4096},"cells_cut":0,"cells_raw":0,"read":"whole","date_system":"1900"}

{"sheet":"Заявка","index":0,"n_rows":38,"n_cols":10,"rows_kept":38,"cut":false,"hidden":false,"merged":[[2,2,2,3]]}
[]
[]
[null,null,"Дано",null,"№","Материал","Остаток на складе","Заказать.","Необходимо","Передать остаток на склад"]
[1,null,{"$f":"#REF!","v":{"$error":"#REF!"}},{"$f":"#REF!","v":{"$error":"#REF!"}},{"$f":"A4","v":1},"Труба профиль. 40*25*1,5     30 шт",null,10,8,{"$f":"H4-I4","v":2}]
[2,null,{"$f":"#REF!","v":{"$error":"#REF!"}},{"$f":"#REF!","v":{"$error":"#REF!"}},2,"Труба профиль. 40*40*3,0",null,0,0,{"$f":"H5-I5","v":0}]
[3,null,{"$f":"#REF!","v":{"$error":"#REF!"}},{"$f":"#REF!","v":{"$error":"#REF!"}},3,"Труба профиль. 25*25*1,5",null,40,30,10]
[4,null,{"$f":"#REF!","v":{"$error":"#REF!"}},{"$f":"#REF!","v":{"$error":"#REF!"}},4,"Труба профиль. 60*60*3,0",null,50,5,45]
[5,null,{"$f":"#REF!","v":{"$error":"#REF!"}},{"$f":"#REF!","v":{"$error":"#REF!"}},5,"Труба профиль. 100*100*4,0",null,0,0,0]
[6,null,{"$f":"#REF!","v":{"$error":"#REF!"}},{"$f":"#REF!","v":{"$error":"#REF!"}},6,"Труба профиль. 180*180*5,0",null,25,7,18]
[7,null,{"$f":"#REF!","v":{"$error":"#REF!"}},{"$f":"#REF!","v":{"$error":"#REF!"}},7,"Труба профиль. 160*160*5,0",null,60,30,30]
[8,null,{"$f":"#REF!","v":{"$error":"#REF!"}},{"$f":"#REF!","v":{"$error":"#REF!"}},8,"Уголок 75/6 ст 09Г2С",null,70,15,55]
[9,null,{"$f":"#REF!","v":{"$error":"#REF!"}},{"$f":"#REF!","v":{"$error":"#REF!"}},9,"Лист 5,0 рифленый          10 шт",null,80,14,66]
[10,null,{"$f":"#REF!","v":{"$error":"#REF!"}},{"$f":"#REF!","v":{"$error":"#REF!"}},10,"Швеллер 10 ст 3 сп/пс",null,90,20,70]
[11,null,{"$f":"#REF!","v":{"$error":"#REF!"}},{"$f":"#REF!","v":{"$error":"#REF!"}},11,"Лист 12 ст 09Г2С",null,3,30,-27]
[12,null,{"$f":"#REF!","v":{"$error":"#REF!"}},{"$f":"#REF!","v":{"$error":"#REF!"}},12,"Лист 8,0 ст 09Г2С",null,9,9,0]
[13,null,{"$f":"#REF!","v":{"$error":"#REF!"}},{"$f":"#REF!","v":{"$error":"#REF!"}},13,{"$f":"IFERROR(INDEX($C$4:$C$33,SMALL(IF(COUNTIF($F$3:F15,$C$4:$C$33)=0,ROW($B$1:$B$30)),1)),\"-\")","v":"-"},null,0,null,0]
[14,null,{"$f":"#REF!","v":{"$error":"#REF!"}},{"$f":"#REF!","v":{"$error":"#REF!"}},14,{"$f":"IFERROR(INDEX($C$4:$C$33,SMALL(IF(COUNTIF($F$3:F16,$C$4:$C$33)=0,ROW($B$1:$B$30)),1)),\"-\")","v":"-"},null,0,null,0]
[15,null,{"$f":"#REF!","v":{"$error":"#REF!"}},{"$f":"#REF!","v":{"$error":"#REF!"}},15,{"$f":"IFERROR(INDEX($C$4:$C$33,SMALL(IF(COUNTIF($F$3:F17,$C$4:$C$33)=0,ROW($B$1:$B$30)),1)),\"-\")","v":"-"},null,0,null,0]
[16,null,{"$f":"#REF!","v":{"$error":"#REF!"}},{"$f":"#REF!","v":{"$error":"#REF!"}},16,{"$f":"IFERROR(INDEX($C$4:$C$33,SMALL(IF(COUNTIF($F$3:F18,$C$4:$C$33)=0,ROW($B$1:$B$30)),1)),\"-\")","v":"-"},null,0,null,0]
[17,null,{"$f":"#REF!","v":{"$error":"#REF!"}},{"$f":"#REF!","v":{"$error":"#REF!"}},17,{"$f":"IFERROR(INDEX($C$4:$C$33,SMALL(IF(COUNTIF($F$3:F19,$C$4:$C$33)=0,ROW($B$1:$B$30)),1)),\"-\")","v":"-"},null,0,null,0]
[18,null,{"$f":"#REF!","v":{"$error":"#REF!"}},{"$f":"#REF!","v":{"$error":"#REF!"}},18,{"$f":"IFERROR(INDEX($C$4:$C$33,SMALL(IF(COUNTIF($F$3:F20,$C$4:$C$33)=0,ROW($B$1:$B$30)),1)),\"-\")","v":"-"},null,0,null,0]
[19,null,{"$f":"#REF!","v":{"$error":"#REF!"}},{"$f":"#REF!","v":{"$error":"#REF!"}},19,{"$f":"IFERROR(INDEX($C$4:$C$33,SMALL(IF(COUNTIF($F$3:F21,$C$4:$C$33)=0,ROW($B$1:$B$30)),1)),\"-\")","v":"-"},null,0,null,0]
[20,null,{"$f":"#REF!","v":{"$error":"#REF!"}},{"$f":"#REF!","v":{"$error":"#REF!"}},20,{"$f":"IFERROR(INDEX($C$4:$C$33,SMALL(IF(COUNTIF($F$3:F22,$C$4:$C$33)=0,ROW($B$1:$B$30)),1)),\"-\")","v":"-"},null,0,null,0]
[21,null,{"$f":"#REF!","v":{"$error":"#REF!"}},{"$f":"#REF!","v":{"$error":"#REF!"}},21,{"$f":"IFERROR(INDEX($C$4:$C$33,SMALL(IF(COUNTIF($F$3:F23,$C$4:$C$33)=0,ROW($B$1:$B$30)),1)),\"-\")","v":"-"},null,0,null,0]
[22,null,{"$f":"#REF!","v":{"$error":"#REF!"}},{"$f":"#REF!","v":{"$error":"#REF!"}},22,{"$f":"IFERROR(INDEX($C$4:$C$33,SMALL(IF(COUNTIF($F$3:F24,$C$4:$C$33)=0,ROW($B$1:$B$30)),1)),\"-\")","v":"-"},null,0,null,0]
[23,null,{"$f":"#REF!","v":{"$error":"#REF!"}},{"$f":"#REF!","v":{"$error":"#REF!"}},23,{"$f":"IFERROR(INDEX($C$4:$C$33,SMALL(IF(COUNTIF($F$3:F25,$C$4:$C$33)=0,ROW($B$1:$B$30)),1)),\"-\")","v":"-"},null,0,null,0]
[24,null,{"$f":"#REF!","v":{"$error":"#REF!"}},{"$f":"#REF!","v":{"$error":"#REF!"}},24,{"$f":"IFERROR(INDEX($C$4:$C$33,SMALL(IF(COUNTIF($F$3:F26,$C$4:$C$33)=0,ROW($B$1:$B$30)),1)),\"-\")","v":"-"},null,0,null,0]
[25,null,{"$f":"#REF!","v":{"$error":"#REF!"}},{"$f":"#REF!","v":{"$error":"#REF!"}},25,{"$f":"IFERROR(INDEX($C$4:$C$33,SMALL(IF(COUNTIF($F$3:F27,$C$4:$C$33)=0,ROW($B$1:$B$30)),1)),\"-\")","v":"-"},null,0,null,0]
[26,null,{"$f":"#REF!","v":{"$error":"#REF!"}},{"$f":"#REF!","v":{"$error":"#REF!"}},26,{"$f":"IFERROR(INDEX($C$4:$C$33,SMALL(IF(COUNTIF($F$3:F28,$C$4:$C$33)=0,ROW($B$1:$B$30)),1)),\"-\")","v":"-"},null,0,null,0]
[27,null,{"$f":"#REF!","v":{"$error":"#REF!"}},{"$f":"#REF!","v":{"$error":"#REF!"}},27,{"$f":"IFERROR(INDEX($C$4:$C$33,SMALL(IF(COUNTIF($F$3:F29,$C$4:$C$33)=0,ROW($B$1:$B$30)),1)),\"-\")","v":"-"},null,0,null,0]
[28,null,{"$f":"#REF!","v":{"$error":"#REF!"}},{"$f":"#REF!","v":{"$error":"#REF!"}},28,{"$f":"IFERROR(INDEX($C$4:$C$33,SMALL(IF(COUNTIF($F$3:F30,$C$4:$C$33)=0,ROW($B$1:$B$30)),1)),\"-\")","v":"-"},null,0,null,0]
[29,null,{"$f":"#REF!","v":{"$error":"#REF!"}},{"$f":"#REF!","v":{"$error":"#REF!"}},29,{"$f":"IFERROR(INDEX($C$4:$C$33,SMALL(IF(COUNTIF($F$3:F31,$C$4:$C$33)=0,ROW($B$1:$B$30)),1)),\"-\")","v":"-"},null,0,null,0]
[30,null,{"$f":"#REF!","v":{"$error":"#REF!"}},{"$f":"#REF!","v":{"$error":"#REF!"}},30,{"$f":"IFERROR(INDEX($C$4:$C$33,SMALL(IF(COUNTIF($F$3:F32,$C$4:$C$33)=0,ROW($B$1:$B$30)),1)),\"-\")","v":"-"},null,0,null,0]
[]
[]
[]
[]
[null,null,null,null,null,"Составил"]

{"sheet":"DDLSettings","index":1,"n_rows":1448,"n_cols":27,"rows_kept":1448,"cut":false,"hidden":false,"merged":[]}
[null,"Наименование","Цена за м/м2/шт/усл","Цена за тонну","Вес 1 метра или м2","Вес 1 шт (кг)","Длина 1 шт. (м,)"," Цена 1 шт.","Цена материала","Остаток на складе, м/м2/шт.","Остаток на складе, тн."]
[null,"-"]
[null,"Арматура 10 25 Г2С         3,0 т",null,null,null,null,null,null,null,8.5,null,null,null,null,null,null,null,null,null,null,null,null,null,null,"Виноград"]
[null,"Арматура 12 25 Г2С       резерв",null,null,null,null,null,null,null,10,null,null,null,null,null,null,null,null,null,null,null,null,null,null,"Кованый малый",399,1000]
[null,"Арматура 14 25 Г2С       резерв",null,null,null,null,null,null,null,15,null,null,null,null,null,null,null,null,null,null,null,null,null,null,"Кованый средний",478,1000]
[null,"Арматура 16 25 Г2С",null,null,null,null,null,null,null,20,null,null,null,null,null,null,null,null,null,null,null,null,null,null,"Кованый большой",610,1000]
[null,"Арматура 18 25Г2С",null,null,null,null,null,null,null,25,null,null,null,null,null,null,null,null,null,null,null,null,null,null,"1925 (кованый)",258.67,1000]
[null,"Арматура 20 25 Г2С           4,0 т",null,null,null,null,null,null,null,32,null,null,null,null,null,null,null,null,null,null,null,null,null,null,1927,286.89999999999998,1000]
[null,"Арматура 25 25 Г2С",null,null,null,null,null,null,null,18,null,null,null,null,null,null,null,null,null,null,null,null,null,null,"1930 (побег)",37.450000000000003,1000]
[null,"Арматура 8 35ГС           в пути",null,null,null,null,null,null,null,23,null,null,null,null,null,null,null,null,null,null,null,null,null,null,"1931 (побег)",68.36,1000]
[null,"Сетка 50*50*4,0 м2",null,null,null,null,null,null,null,null,null,null,null,null,null,null,null,null,null,null,null,null,null,null,"1933-кованый",419,1000]
[null,"Сетка 100*100*4,0 м2",null,null,null,null,null,null,null,null,null,null,null,null,null,null,null,null,null,null,null,null,null,null,"1941-кованый",469,1000]
[null,"Сетка 150*150*5,0",null,null,null,null,null,null,null,null,null,null,null,null,null,null,null,null,null,null,null,null,null,null,"1945 (кованый)",398.67,1000]
[null,"Балка 10 ГОСТ 8239-89",null,null,null,null,null,null,null,null,null,null,null,null,null,null,null,null,null,null,null,null,null,null,"1948 (кованый)",null,1000]
[null,"Балка 12 ГОСТ 8239",null,null,null,null,null,null,null,null,null,null,null,null,null,null,null,null,null,null,null,null,null,null,"1965 (кованый)",649.89,1000]
[null,"Балка 14 ГОСТ 8239-89",null,null,null,null,null,null,null,null,null,null,null,null,null,null,null,null,null,null,null,null,null,null,"1968 (кованый)",null,1000]
[null,"Балка 16 Б-1 сп/пс",null,null,null,null,null,null,null,null,null,null,null,null,null,null,null,null,null,null,null,null,null,null,"Пики стальные",null,1000]
[null,"Балка 18 ГОСТ 8239-89          1 шт  гнут",null,null,null,null,null,null,null,null,null,null,null,null,null,null,null,null,null,null,null,null,null,null,8963,28.9,1000]
[null,"Балка 20 Б-1 сп/пс",null,null,null,null,null,null,null,null,null,null,null,null,null,null,null,null,null,null,null,null,null,null,11957,28.5,1000]
[null,null,null,null,null,null,null,null,null,null,null,null,null,null,null,null,null,null,null,null,null,null,null,null,11963,38.5,1000]
[null,null,null,null,null,null,null,null,null,null,null,null,null,null,null,null,null,null,null,null,null,null,null,null,"11964/2 теперь - 11965/2",51.82,1000]
[null,"Балка 30 Б-1 сп/пс  ГОСТ  8239-89",null,null,null,null,null,null,null,null,null,null,null,null,null,null,null,null,null,null,null,null,null,null,"11978/2",31.93,1000]
[null,"Балка 30 Б-1 сп/пс",null,null,null,null,null,null,null,null,null,null,null,null,null,null,null,null,null,null,null,null,null,null,12001,null,1000]
[null,"Балка 35 Б-1",null,null,null,null,null,null,null,null,null,null,null,null,null,null,null,null,null,null,null,null,null,null,"12001-55",42.68,1000]
[null,"Балка 36 Б-2                          2 шт",null,null,null,null,null,null,null,null,null,null,null,null,null,null,null,null,null,null,null,null,null,null,12002,null,1000]
[null,"Балка 40 Б-1",null,null,null,null,null,null,null,null,null,null,null,null,null,null,null,null,null,null,null,null,null,null,"12002-55",39.97,1000]
[null,"Круг",null,null,null,null,null,null,null,null,null,null,null,null,null,null,null,null,null,null,null,null,null,null,12945,34.6,1000]
[null,"Круг 8,0 ст 3              в пути",null,null,null,null,null,null,null,null,null,null,null,null,null,null,null,null,null,null,null,null,null,null,"12951 (гл.)",28.5,1000]
[null,"Круг 10 ст 3                 в пути",null,null,null,null,null,null,null,null,null,null,null,null,null,null,null,null,null,null,null,null,null,null,12952,21,1000]
[null,"Круг 12 ст 3",null,null,null,null,null,null,null,null,null,null,null,null,null,null,null,null,null,null,null,null,null,null,12957,39.5,1000]
[null,"Круг 16 ст 3 сп/пс",null,null,null,null,null,null,null,null,null,null,null,null,null,null,null,null,null,null,null,null,null,null,"12957/1",39.5,1000]
[null,"Круг 20 ст 3",null,null,null,null,null,null,null,null,null,null,null,null,null,null,null,null,null,null,null,null,null,null,"12597/7",39.5,1000]
[null,"Круг 25 ст 3 сп/пс",null,null,null,null,null,null,null,null,null,null,null,null,null,null,null,null,null,null,null,null,null,null,"12958/1 (осн. Ø12 мм)",27.9,1000]
[null,"Катанка 8,0 гост  5781",null,null,null,null,null,null,null,null,null,null,null,null,null,null,null,null,null,null,null,null,null,null,12959,49.9,1000]
[null,"                     Квадрат",null,null,null,null,null,null,null,null,null,null,null,null,null,null,null,null,null,null,null,null,null,null,12960,39.9,1000]
[null,"Квадрат 10 ст 3 сп/пс",null,null,null,null,null,null,null,null,null,null,null,null,null,null,null,null,null,null,null,null,null,null,12962,null,1000]
[null,"Квадрат 12 ст 3 сп/пс         0,5 т",null,null,null,null,null,null,null,null,null,null,null,null,null,null,null,null,null,null,null,null,null,null,12963,null,1000]
[null,"Квадрат 14 ст 3 сп/пс",null,null,null,null,null,null,null,null,null,null,null,null,null,null,null,null,null,null,null,null,null,null,"12963/3",54.9,1000]
[null,"Квадрат 16 ст 3 сп/пс      ",null,null,null,null,null,null,null,null,null,null,null,null,null,null,null,null,null,null,null,null,null,null,12964,59.98,1000]
[null,"Лист",null,null,null,null,null,null,null,null,null,null,null,null,null,null,null,null,null,null,null,null,null,null,12966,29.5,1000]
[null,"Лист 0,55 оцинкованный",null,null,null,null,null,null,null,null,null,null,null,null,null,null,null,null,null,null,null,null,null,null,"12966/3",30,1000]
[null,"Лист 0,7 оцинкованный",null,null,null,null,null,null,null,null,null,null,null,null,null,null,null,null,null,null,null,null,null,null,12967,54.5,1000]
[null,"Лист 1,0 оцинкованный",null,null,null,null,null,null,null,null,null,null,null,null,null,null,null,null,null,null,null,null,null,null,"12969 (гл.)",30,1000]
[null,"Лист 1,0 ст 08пс                0,4 т",null,null,null,null,null,null,null,null,null,null,null,null,null,null,null,null,null,null,null,null,null,null,12970,null,1000]
[null,"Лист 1,2 ст 3 сп/пс",null,null,null,null,null,null,null,null,null,null,null,null,null,null,null,null,null,null,null,null,null,null,"12970/2",42.49,1000]
[null,"Лист 1,5 ст 3 сп/пс (1*2)",null,null,null,null,null,null,null,null,null,null,null,null,null,null,null,null,null,null,null,null,null,null,12973,65,1000]
[null,"Лист 1,5 ст 3 сп/пс            1 шт",null,null,null,null,null,null,null,null,null,null,null,null,null,null,null,null,null,null,null,null,null,null,12974,38.5,1000]
[null,"Лист 2,0 ст 3 сп/пс",null,null,null,null,null,null,null,null,null,null,null,null,null,null,null,null,null,null,null,null,null,null,"12975/3",41.5,1000]
[null,"Лист 3,0 ст 3 сп/пс",null,null,null,null,null,null,null,null,null,null,null,null,null,null,null,null,null,null,null,null,null,null,"12978/1",27.9,1000]
[null,"Лист 4,0 ст 3 сп/пс            в пути",null,null,null,null,null,null,null,null,null,null,null,null,null,null,null,null,null,null,null,null,null,null,12980,64.349999999999994,1000]
[null,"Лист 4,0 рифленый",null,null,null,null,null,null,null,null,null,null,null,null,null,null,null,null,null,null,null,null,null,null,"12981/3",34.6,1000]
[null,"Лист 4,0 ПВ-406                    12 шт      1*1,4   ",null,null,null,null,null,null,null,null,null,null,null,null,null,null,null,null,null,null,null,null,null,null,12982,29.57,1000]
[null,"Лист 5,0 ст 3 сп/пс              в пути",null,null,null,null,null,null,null,null,null,null,null,null,null,null,null,null,null,null,null,null,null,null,"12982/2",39.9,1000]
[null,"Лист 5,0 рифленый          10 шт",null,null,null,null,null,null,null,null,null,null,null,null,null,null,null,null,null,null,null,null,null,null,12984,169.65,1000]
[null,"Лист 6,0 ст 3сп/пс",null,null,null,null,null,null,null,null,null,null,null,null,null,null,null,null,null,null,null,null,null,null,12990,68.959999999999994,1000]
[null,"Лист 6,0 РСА",null,null,null,null,null,null,null,null,null,null,null,null,null,null,null,null,null,null,null,null,null,null,12998,27.5,1000]
[null,"Лист 6,0 ст 09Г2С             3 шт",null,null,null,null,null,null,null,null,null,null,null,null,null,null,null,null,null,null,null,null,null,null,"16957/7",132,1000]
[null,"Лист 8,0 ст 3 сп/пс           в пути",null,null,null,null,null,null,null,null,null,null,null,null,null,null,null,null,null,null,null,null,null,null,16964,54.87,1000]
[null,"Лист 8,0 ст 09Г2С",null,null,null,null,null,null,null,null,null,null,null,null,null,null,null,null,null,null,null,null,null,null,"16965/2",79.95,1000]
[null,"Лист 10 ст 3 сп",null,null,null,null,null,null,null,null,null,null,null,null,null,null,null,null,null,null,null,null,null,null,16971,118.5,1000]
[null,"Лист 12 ст 3 сп/пс",null,null,null,null,null,null,null,null,null,null,null,null,null,null,null,null,null,null,null,null,null,null,"16972/2",45.5,1000]
[null,"Лист 12 ст 09Г2С",null,null,null,null,null,null,null,null,null,null,null,null,null,null,null,null,null,null,null,null,null,null,16973,89.5,1000]
[null,"Лист 14 ст 3 сп",null,null,null,null,null,null,null,null,null,null,null,null,null,null,null,null,null,null,null,null,null,null,16985,34.479999999999997,1000]
[null,"Лист 16 ст 3 сп",null,null,null,null,null,null,null,null,null,null,null,null,null,null,null,null,null,null,null,null,null,null,16987,26,1000]
[null,"Лист 18 ст 09Г2С                          6 шт",null,null,null,null,null,null,null,null,null,null,null,null,null,null,null,null,null,null,null,null,null,null,"16987/3",41.5,1000]
[null,"Лист 20 ст 3 сп             2 шт резерв",null,null,null,null,null,null,null,null,null,null,null,null,null,null,null,null,null,null,null,null,null,null,16988,136.5,1000]
[null,"Лист 20 ст 09Г2С",null,null,null,null,null,null,null,null,null,null,null,null,null,null,null,null,null,null,null,null,null,null,16998,69,1000]
[null,"Лист 25 ст 3 сп",null,null,null,null,null,null,null,null,null,null,null,null,null,null,null,null,null,null,null,null,null,null,"19001-12 теперь см. 12001",null,1000]
[null,"Лист 25 ст 3 сп                  1 шт",null,null,null,null,null,null,null,null,null,null,null,null,null,null,null,null,null,null,null,null,null,null,"19002  теперь см. 12002",null,1000]
[null,"Лист 40 ст 3 сп             1 шт",null,null,null,null,null,null,null,null,null,null,null,null,null,null,null,null,null,null,null,null,null,null,24957,292.39,1000]
[null,"Лист 60 ст 3 сп                1 шт резерв",null,null,null,null,null,null,null,null,null,null,null,null,null,null,null,null,null,null,null,null,null,null,"24957/7",229,1000]
[null,"Лист 80 ст 3 сп                 2 шт",null,null,null,null,null,null,null,null,null,null,null,null,null,null,null,null,null,null,null,null,null,null,"24958/1",48.5,1000]
[null,"Лист 100 ст 3 сп         1 шт",null,null,null,null,null,null,null,null,null,null,null,null,null,null,null,null,null,null,null,null,null,null,24959,169.5,1000]
[null,"Нержавейка 2мм.",null,null,null,null,null,null,null,null,null,null,null,null,null,null,null,null,null,null,null,null,null,null,24961,468,1000]
[null,"Нержавейка 3 мм.",null,null,null,null,null,null,null,null,null,null,null,null,null,null,null,null,null,null,null,null,null,null,"24963/3",119.5,1000]
[null,"  Полоса       ",null,null,null,null,null,null,null,null,null,null,null,null,null,null,null,null,null,null,null,null,null,null,24964,105.3,1000]
[null,"Полоса 40/4",null,null,null,null,null,null,null,null,null,null,null,null,null,null,null,null,null,null,null,null,null,null,24966,89.9,1000]
[null,"Труба 15/2,8 вгп.",null,null,null,null,null,null,null,null,null,null,null,null,null,null,null,null,null,null,null,null,null,null,"24966/3",62.5,1000]
[null,"Труба 15/2,8 оцинк.",null,null,null,null,null,null,null,null,null,null,null,null,null,null,null,null,null,null,null,null,null,null,"24970/3",38.5,1000]
[null,"Труба 15/2,8 оцинк.",null,null,null,null,null,null,null,null,null,null,null,null,null,null,null,null,null,null,null,null,null,null,24980,156.33000000000001,1000]
[null,"Труба 20/2,8 вгп.",null,null,null,null,null,null,null,null,null,null,null,null,null,null,null,null,null,null,null,null,null,null,24982,119.6,1000]
[null,"Труба 20/2,8 оцинк.",null,null,null,null,null,null,null,null,null,null,null,null,null,null,null,null,null,null,null,null,null,null,24984,274.95,1000]
[null,"Труба 20/2,8 оцинк.",null,null,null,null,null,null,null,null,null,null,null,null,null,null,null,null,null,null,null,null,null,null,24990,107.64,1000]
[null,"Труба 25/3,2 вгп. ГОСТ 3262",null,null,null,null,null,null,null,null,null,null,null,null,null,null,null,null,null,null,null,null,null,null,24998,59,1000]
[null,"Труба 25/3,2 оцинк.",null,null,null,null,null,null,null,null,null,null,null,null,null,null,null,null,null,null,null,null,null,null,"28963/3",385,1000]
[null,"Труба 32/3,2 вгп.",null,null,null,null,null,null,null,20,null,null,null,null,null,null,null,null,null,null,null,null,null,null,"Наконечники стальные",null,1000]
[null,"Труба 32/3,2 оцинк.",null,null,null,null,null,null,null,null,null,null,null,null,null,null,null,null,null,null,null,null,null,null,"12983 теперь см. 18173",null,1000]
[null,"Труба 40/3,5 вгп.",null,null,null,null,null,null,null,null,null,null,null,null,null,null,null,null,null,null,null,null,null,null,"16983 теперь см. 18183",null,1000]
[null,"Труба 40/3,5 оцинк.",null,null,null,null,null,null,null,null,null,null,null,null,null,null,null,null,null,null,null,null,null,null,18102,279.60000000000002,1000]
[null,"Труба 50/3,5 оцинк.",null,null,null,null,null,null,null,null,null,null,null,null,null,null,null,null,null,null,null,null,null,null,18173,139.94,1000]
[null,"Труба 57/3,5 эл.св.",null,null,null,null,null,null,null,null,null,null,null,null,null,null,null,null,null,null,null,null,null,null,18183,178.69,1000]
[null,"Труба 76/3,5 эл./св.",null,null,null,null,null,null,null,null,null,null,null,null,null,null,null,null,null,null,null,null,null,null,18185,339.63,1000]
[null,"Труба 89/3,5 эл.св.",null,null,null,null,null,null,null,null,null,null,null,null,null,null,null,null,null,null,null,null,null,null,18192,99.8,1000]
[null,"Труба 108/4,0 эл.св.",null,null,null,null,null,null,null,null,null,null,null,null,null,null,null,null,null,null,null,null,null,null,18194,78.14,1000]
[null,"Труба 114/4,5 эл.св.",null,null,null,null,null,null,null,null,null,null,null,null,null,null,null,null,null,null,null,null,null,null,18196,54.68,1000]
[null,"Труба 133/4,5 эл.св.",null,null,null,null,null,null,null,null,null,null,null,null,null,null,null,null,null,null,null,null,null,null,18201,189.9,1000]
[null,"Труба 159/4,5 эл.св.",null,null,null,null,null,null,null,null,null,null,null,null,null,null,null,null,null,null,null,null,null,null,18202,313.56,1000]
[null,"Труба 219/6 эл/св.",null,null,null,null,null,null,null,null,null,null,null,null,null,null,null,null,null,null,null,null,null,null,18204,222.2,1000]
[null,"Труба 273/7 эл/св.вост.",null,null,null,null,null,null,null,null,null,null,null,null,null,null,null,null,null,null,null,null,null,null,18206,146.25,1000]
[null,"Труба профиль. 15*15*1,5",null,null,null,null,null,null,null,null,null,null,null,null,null,null,null,null,null,null,null,null,null,null,"18207/2",32,1000]
[null,"Труба профиль. 20*20*1,5 оцинк.",null,null,null,null,null,null,null,null,null,null,null,null,null,null,null,null,null,null,null,null,null,null,"18208/2",95,1000]
[null,"Труба профиль. 20*20*1,5",null,null,null,null,null,null,null,null,null,null,null,null,null,null,null,null,null,null,null,null,null,null,"18210/2",49.9,1000]
[null,"Труба профиль. 25*25*1,5",null,null,null,null,null,null,null,null,null,null,null,null,null,null,null,null,null,null,null,null,null,null,"18211/2",49.9,1000]
[null,"Труба профиль. 25*25*2,0",null,null,null,null,null,null,null,null,null,null,null,null,null,null,null,null,null,null,null,null,null,null,18212,462.88,1000]
[null,"Труба профиль. 30*20*1,5",null,null,null,null,null,null,null,null,null,null,null,null,null,null,null,null,null,null,null,null,null,null,18213,572.13,1000]
[null,"Труба профиль. 30*30*1,5",null,null,null,null,null,null,null,null,null,null,null,null,null,null,null,null,null,null,null,null,null,null,18216,135.72,1000]
[null,"Труба профиль. 40*20*1,5    в пути",null,null,null,null,null,null,null,null,null,null,null,null,null,null,null,null,null,null,null,null,null,null,18220,499,1000]
[null,"Труба профиль. 40*20*2,0     30 шт",null,null,null,null,null,null,null,null,null,null,null,null,null,null,null,null,null,null,null,null,null,null,18223,535,1000]
[null,"Труба профиль. 40*25*1,5     30 шт",null,null,null,null,null,null,null,20,null,null,null,null,null,null,null,null,null,null,null,null,null,null,18227,520,1000]
[null,"Труба профиль. 40*25*2,0",null,null,null,null,null,null,null,null,null,null,null,null,null,null,null,null,null,null,null,null,null,null,18230,39.5,1000]
[null,"Труба профиль. 40*40*2,0",null,null,null,null,null,null,null,30,null,null,null,null,null,null,null,null,null,null,null,null,null,null,18234,418,1000]
[null,"Труба профиль. 40*40*3,0",null,null,null,null,null,null,null,30,null,null,null,null,null,null,null,null,null,null,null,null,null,null,18236,735,1000]
[null,"Труба профиль. 50*25*1,5",null,null,null,null,null,null,null,null,null,null,null,null,null,null,null,null,null,null,null,null,null,null,18238,2358,1000]
[null,"Труба профиль. 50*50*2,0",null,null,null,null,null,null,null,null,null,null,null,null,null,null,null,null,null,null,null,null,null,null,18240,41.5,1000]
[null,"Труба профиль. 50*50*3,0",null,null,null,null,null,null,null,null,null,null,null,null,null,null,null,null,null,null,null,null,null,null,18251,54.6,1000]
[null,"Труба профиль. 60*40*2,0",null,null,null,null,null,null,null,5,null,null,null,null,null,null,null,null,null,null,null,null,null,null,18255,289,1000]
[null,"Труба профиль. 60*40*3,0",null,null,null,null,null,null,null,null,null,null,null,null,null,null,null,null,null,null,null,null,null,null,18263,134,1000]
[null,"Труба профиль. 60*60*3,0",null,null,null,null,null,null,null,null,null,null,null,null,null,null,null,null,null,null,null,null,null,null,18267,2082,1000]
[null,"Труба профиль. 80*60*3,0",null,null,null,null,null,null,null,null,null,null,null,null,null,null,null,null,null,null,null,null,null,null,"18281 (голова дракона)",1949,1000]
[null,"Труба профиль. 80*80*3,0      0,7 т",null,null,null,null,null,null,null,null,null,null,null,null,null,null,null,null,null,null,null,null,null,null,18291,45.5,1000]
[null,"Труба профиль. 80*80*4,0",null,null,null,null,null,null,null,null,null,null,null,null,null,null,null,null,null,null,null,null,null,null,18299,2485,1000]
[null,"Труба профиль. 100*50*3,0",null,null,null,null,null,null,null,120,null,null,null,null,null,null,null,null,null,null,null,null,null,null,18300,4576,1000]
[null,"Труба профиль. 100*100*4,0",null,null,null,null,null,null,null,300,null,null,null,null,null,null,null,null,null,null,null,null,null,null,"18502 (латунь)",3229.08,1000]
[null,"Труба профиль. 120*120*5,0",null,null,null,null,null,null,null,null,null,null,null,null,null,null,null,null,null,null,null,null,null,null,"18777-40",28.95,1000]
[null,"Труба профиль. 160*160*5,0",null,null,null,null,null,null,null,null,null,null,null,null,null,null,null,null,null,null,null,null,null,null,"18777-50",33.94,1000]
[null,"Труба профиль. 180*180*5,0",null,null,null,null,null,null,null,null,null,null,null,null,null,null,null,null,null,null,null,null,null,null,"18777-60",43.89,1000]
[null,"Уголок 25/4 ст 3 сп/пс",null,null,null,null,null,null,null,null,null,null,null,null,null,null,null,null,null,null,null,null,null,null,"18777-80/70",65,1000]
[null,"Уголок 32/4 ст 3 сп/пс",null,null,null,null,null,null,null,null,null,null,null,null,null,null,null,null,null,null,null,null,null,null,"18777-80",69.959999999999994,1000]
[null,"Уголок 40/4 ст 3 сп/пс",null,null,null,null,null,null,null,null,null,null,null,null,null,null,null,null,null,null,null,null,null,null,"18780-40",28.95,1000]
[null,"Уголок 40/4 ст 3 сп/пс",null,null,null,null,null,null,null,null,null,null,null,null,null,null,null,null,null,null,null,null,null,null,"18780-50",33.94,1000]
[null,"Уголок 45/4 ст 3 сп/пс",null,null,null,null,null,null,null,null,null,null,null,null,null,null,null,null,null,null,null,null,null,null,"18780-60",43.89,1000]
[null,"Уголок 50/5 ст 3 сп/пс",null,null,null,null,null,null,null,null,null,null,null,null,null,null,null,null,null,null,null,null,null,null,"18780-80",69.959999999999994,1000]
[null,"Уголок 50/5 ст 3 сп/пс",null,null,null,null,null,null,null,null,null,null,null,null,null,null,null,null,null,null,null,null,null,null,"18780-100",98.45,1000]
[null,"Уголок 50/5 ст 09Г2С",null,null,null,null,null,null,null,null,null,null,null,null,null,null,null,null,null,null,null,null,null,null,"18780-120",109.5,1000]
[null,"Уголок 63/5 ст 3 сп/пс",null,null,null,null,null,null,null,null,null,null,null,null,null,null,null,null,null,null,null,null,null,null,"24983 теперь см. 18185",null,1000]
[null,"Уголок 63/5 ст 09Г2С",null,null,null,null,null,null,null,null,null,null,null,null,null,null,null,null,null,null,null,null,null,null,"Корзинки (koza)",null,1000]
[null,"Уголок 75/6 ст 3 сп/пс",null,null,null,null,null,null,null,null,null,null,null,null,null,null,null,null,null,null,null,null,null,null,"04-12/3 (на 12 кв. из 4 мм)",99.84,1000]
[null,"Уголок 75/6 ст 09Г2С",null,null,null,null,null,null,null,null,null,null,null,null,null,null,null,null,null,null,null,null,null,null,"05-10/3 (на 10 кв. из 5 мм)",38,1000]
[null,"Уголок 90/7 ст 3 сп/пс",null,null,null,null,null,null,null,null,null,null,null,null,null,null,null,null,null,null,null,null,null,null,"05-15/3 (на 15 кв. из 5 мм)",104.06,1000]
[null,"Уголок 100/8 ст 3 сп/пс",null,null,null,null,null,null,null,null,null,null,null,null,null,null,null,null,null,null,null,null,null,null,"06-121/3 (круглая)",99.9,1000]
[null,"Уголок 110/8 ст 3 сп/пс",null,null,null,null,null,null,null,null,null,null,null,null,null,null,null,null,null,null,null,null,null,null,"06-12/3 (на 12 кв. из 6 мм)",39,1000]
[null,"Уголок 125/8 ст 3 сп/пс",null,null,null,null,null,null,null,null,null,null,null,null,null,null,null,null,null,null,null,null,null,null,"07-14/3 (на 14 кв. из 7 мм)",59.15,1000]
[null,"Уголок 140/10 ст 3 сп/пс",null,null,null,null,null,null,null,null,null,null,null,null,null,null,null,null,null,null,null,null,null,null,"07-14 k (на 14 кв. из 7 мм)",null,1000]
[null,"Швеллер",null,null,null,null,null,null,null,null,null,null,null,null,null,null,null,null,null,null,null,null,null,null,"07-21/3 (на 21 кв. из 7 мм)",99.5,1000]
[null,"Швеллер 6,5 ст 3 сп/пс",null,null,null,null,null,null,null,null,null,null,null,null,null,null,null,null,null,null,null,null,null,null,"08-16/3 (на 16 кв. из 8 мм)",74.8,1000]
[null,"Швеллер 8,0 ст 3 сп/пс",null,null,null,null,null,null,null,null,null,null,null,null,null,null,null,null,null,null,null,null,null,null,"08-24/3 (на 24 кв. из 8 мм)",219.5,1000]
[null,"Швеллер 10 ст 3 сп/пс",null,null,null,null,null,null,null,null,null,null,null,null,null,null,null,null,null,null,null,null,null,null,"10-20/3 (на 20 кв. из 10 мм)",153,1000]
[null,"Швеллер 12 ст 3 сп/пс",null,null,null,null,null,null,null,null,null,null,null,null,null,null,null,null,null,null,null,null,null,null,"10-30/3 (на 30 кв. из 10 мм)",398.5,1000]
[null,"Швеллер 14 ст 3 сп/пс",null,null,null,null,null,null,null,null,null,null,null,null,null,null,null,null,null,null,null,null,null,null,"12-24/3 (на 24 кв. из 12 мм)",194,1000]
[null,"Швеллер 16 ст 3 сп/пс       1 шт",null,null,null,null,null,null,null,null,null,null,null,null,null,null,null,null,null,null,null,null,null,null,"15-30/3 (на 30 кв. из 14 мм)",379,1000]
[null,"Швеллер 16 ст 09Г2С",null,null,null,null,null,null,null,null,null,null,null,null,null,null,null,null,null,null,null,null,null,null,"20-40/3 (на 40 кв. из 20 мм)",721,1000]
[null,"Швеллер 18 ст 3 сп/пс",null,null,null,null,null,null,null,null,null,null,null,null,null,null,null,null,null,null,null,null,null,null,"Полусферы, сферы, шары стальные",null,1000]
[null,"Швеллер 20 Уст 3 сп/пс",null,null,null,null,null,null,null,null,null,null,null,null,null,null,null,null,null,null,null,null,null,null,"Полусфера 30 мм (1,0мм)",9.4499999999999993,1000]
[null,"Швеллер 22у ст 3 сп/пс        8 шт",null,null,null,null,null,null,null,null,null,null,null,null,null,null,null,null,null,null,null,null,null,null,"Полусфера 40 мм (1,2мм)",10.58,1000]
[null,"Швеллер 22у ст 3 сп/пс",null,null,null,null,null,null,null,null,null,null,null,null,null,null,null,null,null,null,null,null,null,null,"Полусфера 50 мм (1,2мм)",13.85,1000]
[null,"Швеллер 24у ст 3 сп",null,null,null,null,null,null,null,null,null,null,null,null,null,null,null,null,null,null,null,null,null,null,"Полусфера 60 мм (1,2мм)",20.37,1000]
[null,"Швеллер 27у ст 3 сп   ",null,null,null,null,null,null,null,null,null,null,null,null,null,null,null,null,null,null,null,null,null,null,"Полусфера 70 мм (1,2 мм)",22.49,1000]
[null,"Швеллер 30У  ст 3 сп/пс              ",null,null,null,null,null,null,null,null,null,null,null,null,null,null,null,null,null,null,null,null,null,null,"Полусфера 80 мм (1,5 мм)",36.74,1000]
[null,"Швеллер 40У ст 09Г2С              27 шт",null,null,null,null,null,null,null,null,null,null,null,null,null,null,null,null,null,null,null,null,null,null,"Полусфера 90 мм (1,2 мм)",36.94,1000]
[null,"               Уголок х/к",null,null,null,null,null,null,null,null,null,null,null,null,null,null,null,null,null,null,null,null,null,null,"Полусфера 100 мм(1,5 мм)",47.86,1000]
[null,"Уголок 25/3 х/к ст 3 сп/пс",null,null,null,null,null,null,null,null,null,null,null,null,null,null,null,null,null,null,null,null,null,null,"Полусфера 120 мм(1,2 мм)",82.79,1000]
[null,"Уголок 50/3 х/к ст 3 сп/пс",null,null,null,null,null,null,null,null,null,null,null,null,null,null,null,null,null,null,null,null,null,null,"Полусфера 150 мм.(1,2 мм)",108.96,1000]
[null,"Уголок 75/4 х/к ст 3 сп/пс",null,null,null,null,null,null,null,null,null,null,null,null,null,null,null,null,null,null,null,null,null,null,"Сфера пустотелая 40 мм",29.97,1000]
[null,"Шестигранник",null,null,null,null,null,null,null,null,null,null,null,null,null,null,null,null,null,null,null,null,null,null,"Сфера пустотелая 50 мм",42.57,1000]
[null,"Шестигранник 12 ст 45(Гост 2879-88)",null,null,null,null,null,null,null,null,null,null,null,null,null,null,null,null,null,null,null,null,null,null,"Сфера пустотелая 60 мм",53.93,1000]
[null,"Шестигранник 14 ст 45(Гост 2879-88)",null,null,null,null,null,null,null,null,null,null,null,null,null,null,null,null,null,null,null,null,null,null,"Сфера пустотелая 70 мм",68.89,1000]
[null,"                Швеллер х/к",null,null,null,null,null,null,null,null,null,null,null,null,null,null,null,null,null,null,null,null,null,null,"Сфера пустотелая 80 мм",79.97,1000]
[null,"Швеллер 120*60*3,9 х/к",null,null,null,null,null,null,null,null,null,null,null,null,null,null,null,null,null,null,null,null,null,null,"Сфера пустотел. 90 мм.",91.65,1000]
[null,"Швеллер 140*60*4,0 х/к",null,null,null,null,null,null,null,null,null,null,null,null,null,null,null,null,null,null,null,null,null,null,"Сфера пустотел. 100 мм.",117.75,1000]
[null,"Швеллер 160*80*4,0 х/к",null,null,null,null,null,null,null,null,null,null,null,null,null,null,null,null,null,null,null,null,null,null,"Сфера пустотел. 120 мм",218.46,1000]
[null,"Брус 100*100 (цена за м.п.)",null,null,null,null,null,null,null,null,null,null,null,null,null,null,null,null,null,null,null,null,null,null,"Сфера пустотел. 150 мм",297.45999999999998,1000]
[null,"Краб Х-образный",null,null,null,null,null,null,null,null,null,null,null,null,null,null,null,null,null,null,null,null,null,null,"Шар (ст.3) 15 (15 мм)",5.0999999999999996,1000]
[null,"Краб Т-образный",null,null,null,null,null,null,null,null,null,null,null,null,null,null,null,null,null,null,null,null,null,null,"Шар (ст.3) 16/2 (16 мм)",4.95,1000]
[null,"Бандаж ст. Ø700",null,null,null,null,null,null,null,null,null,null,null,null,null,null,null,null,null,null,null,null,null,null,"Шар (ст.3) 20/2 (20 мм)",9.5,1000]
[null,"Бандаж ст. Ø650",null,null,null,null,null,null,null,null,null,null,null,null,null,null,null,null,null,null,null,null,null,null,"Шар (ст.3) 25/2 (25 мм)",18.5,1000]
[null,"Бандаж ст. Ø600",null,null,null,null,null,null,null,null,null,null,null,null,null,null,null,null,null,null,null,null,null,null,"Шар (ст.3) 30/2 (30 мм)",29,1000]
[null,"Бандаж ст. Ø560",null,null,null,null,null,null,null,null,null,null,null,null,null,null,null,null,null,null,null,null,null,null,"Шар (ст.3) 40/2 (40 мм)",56.5,1000]
[null,"Бандаж ст. Ø500",null,null,null,null,null,null,null,null,null,null,null,null,null,null,null,null,null,null,null,null,null,null,"Шар (ст.3) 50/2 (50 мм)",123,1000]
[null,"Бандаж ст. Ø480",null,null,null,null,null,null,null,null,null,null,null,null,null,null,null,null,null,null,null,null,null,null,"Шар (ст.3) 60/2 (50 мм)",209,1000]
[null,"Бандаж ст. Ø420",null,null,null,null,null,null,null,null,null,null,null,null,null,null,null,null,null,null,null,null,null,null,"Шары кованые с гранями (\"арбузы\")",null,1000]
[null,"Бандаж ст. Ø380",null,null,null,null,null,null,null,null,null,null,null,null,null,null,null,null,null,null,null,null,null,null,"Шар кованый 25/2 - 25 мм.",null,1000]
[null,"Бандаж ст. Ø330",null,null,null,null,null,null,null,null,null,null,null,null,null,null,null,null,null,null,null,null,null,null,"Шар кованый 30/2 - 30 мм.",54.93,1000]
[null,"Бандаж ст. Ø300",null,null,null,null,null,null,null,null,null,null,null,null,null,null,null,null,null,null,null,null,null,null,"Шар кованый 40/2 - 30 мм.",98.26,1000]
[null,"Герметик для бандажа 600 мл.",null,null,null,null,null,null,null,null,null,null,null,null,null,null,null,null,null,null,null,null,null,null,"Объёмные штампованные листья",null,1000]
[null,"Врезки",null,null,null,null,null,null,null,null,null,null,null,null,null,null,null,null,null,null,null,null,null,null,"19350 теперь см. 19-1355",null,1000]
[null,"Врезка лист 1-2",null,null,null,null,null,null,null,null,null,null,null,null,null,null,null,null,null,null,null,null,null,null,"19351 теперь см. 19-1351",null,1000]
[null,"Врезка лист 3-4",null,null,null,null,null,null,null,null,null,null,null,null,null,null,null,null,null,null,null,null,null,null,"19353 теперь см. 19-1353",null,1000]
[null,"Врезка лист 5-6",null,null,null,null,null,null,null,null,null,null,null,null,null,null,null,null,null,null,null,null,null,null,"19354 теперь см. 19-1216",null,1000]
[null,"Врезка лист 7-8",null,null,null,null,null,null,null,null,null,null,null,null,null,null,null,null,null,null,null,null,null,null,"19355 теперь см. 19-1206",null,1000]
[null,"Врезка лист 9-10",null,null,null,null,null,null,null,null,null,null,null,null,null,null,null,null,null,null,null,null,null,null,"19-1002",28.64,1000]
[null,"Врезка лист 11-12",null,null,null,null,null,null,null,null,null,null,null,null,null,null,null,null,null,null,null,null,null,null,"19-1003",13.24,1000]
[null,"Врезка лист 13-14",null,null,null,null,null,null,null,null,null,null,null,null,null,null,null,null,null,null,null,null,null,null,"19-1004 (лист розы)",13.49,1000]
[null,"Врезка лист 15-16",null,null,null,null,null,null,null,null,null,null,null,null,null,null,null,null,null,null,null,null,null,null,"19-1005",14.49,1000]
[null,"Пенопласт 40мм. Цена за 1м2",null,null,null,null,null,null,null,null,null,null,null,null,null,null,null,null,null,null,null,null,null,null,"19-1006",18.89,1000]
[null,"Болт М8",null,null,null,null,null,null,null,null,null,null,null,null,null,null,null,null,null,null,null,null,null,null,"19-1007",18.25,1000]
[null,"Гайка М8",null,null,null,null,null,null,null,null,null,null,null,null,null,null,null,null,null,null,null,null,null,null,"19-1008",14.23,1000]
[null,"Плазменная резка металла толщиной 0,5-0,9 мм.",null,null,null,null,null,null,null,null,null,null,null,null,null,null,null,null,null,null,null,null,null,null,"19-1009",43.86,1000]
[null,"Плазменная резка металла толщиной 1-2 мм",null,null,null,null,null,null,null,null,null,null,null,null,null,null,null,null,null,null,null,null,null,null,"19-1010",14.56,1000]
[null,"Плазменная резка металла толщиной 2,5-3 мм.",null,null,null,null,null,null,null,null,null,null,null,null,null,null,null,null,null,null,null,null,null,null,"19-1012",13.33,1000]
[null,"Плазменная резка металла толщиной 3,1-4 мм",null,null,null,null,null,null,null,null,null,null,null,null,null,null,null,null,null,null,null,null,null,null,"19-1013",20.81,1000]
[null,"Плазменная резка металла толщиной 5 мм",null,null,null,null,null,null,null,null,null,null,null,null,null,null,null,null,null,null,null,null,null,null,"19-1014",25.89,1000]
[null,"Плазменная резка металла толщиной 6 мм",null,null,null,null,null,null,null,null,null,null,null,null,null,null,null,null,null,null,null,null,null,null,"19-1014/1",13.69,1000]
[null,"Плазменная резка металла толщиной 8 мм",null,null,null,null,null,null,null,null,null,null,null,null,null,null,null,null,null,null,null,null,null,null,"19-1015",31.2,1000]
[null,"Плазменная резка металла толщиной 10 мм",null,null,null,null,null,null,null,null,null,null,null,null,null,null,null,null,null,null,null,null,null,null,"19-1016",28.95,1000]
[null,"Плазменная резка металла толщиной 12 мм",null,null,null,null,null,null,null,null,null,null,null,null,null,null,null,null,null,null,null,null,null,null,"19-1017",37.880000000000003,1000]
[null,"Плазменная резка металла толщиной 14 мм",null,null,null,null,null,null,null,null,null,null,null,null,null,null,null,null,null,null,null,null,null,null,"19-1018",29.98,1000]
[null,"Плазменная резка металла толщиной 16 мм ",null,null,null,null,null,null,null,null,null,null,null,null,null,null,null,null,null,null,null,null,null,null,"19-1019",28.64,1000]
[null,"Сварка нержавеющей стали 0,5-2мм за метр",null,null,null,null,null,null,null,null,null,null,null,null,null,null,null,null,null,null,null,null,null,null,"19-1020",29.87,1000]
[null,"Лист гладкий Цветной 0,4 RAL (без плеки) (м2)",null,null,null,null,null,null,null,null,null,null,null,null,null,null,null,null,null,null,null,null,null,null,"19-1021",27.36,1000]
[null,"Лист гладкий Цветной 0,4 RAL (в плеке) (м2)",null,null,null,null,null,null,null,null,null,null,null,null,null,null,null,null,null,null,null,null,null,null,"19-1022",38.94,1000]
[null,"Лист гладкий Цветной 0,45 RAL (без плеки) (м2)",null,null,null,null,null,null,null,null,null,null,null,null,null,null,null,null,null,null,null,null,null,null,"19-1023",37.49,1000]
[null,"Лист гладкий Цветной 0,45 RAL (в плеке) (м2)",null,null,null,null,null,null,null,null,null,null,null,null,null,null,null,null,null,null,null,null,null,null,"19-1024",32.5,1000]
[null,"Лист гладкий Цветной 0,5 RAL (без плеки) (м2)",null,null,null,null,null,null,null,null,null,null,null,null,null,null,null,null,null,null,null,null,null,null,"19-1025 (виноград)",30.33,1000]
[null,"Лист гладкий Цветной 0,5 RAL (в плеке) (м2)",null,null,null,null,null,null,null,null,null,null,null,null,null,null,null,null,null,null,null,null,null,null,"19-1026 (роза)",83.98,1000]
[]
[]
[]
[]
[]
[]
[]
[]
[]
[]
[]
[]
[]
[]
[]
[]
[]
[]
[]
[]
[]
[]
[]
[]
[]
[]
[]
[]
[]
[]
[]
[]
[]
[]
[]
[]
[]
[]
[]
[]
[]
[]
[]
[]
[]
[]
[]
[]
[]
[]
[]
[]
[]
[]
[]
[]
[]
[]
[]
[]
[]
[]
[]
[]
[]
[]
[]
[]
[]
[]
[]
[]
[]
[]
[]
[]
[]
[]
[]
[]
[]
[]
[]
[]
[]
[]
[]
[]
[]
[]
[]
[]
[]
[]
[]
[]
[]
[]
[]
[]
[]
[]
[]
[]
[]
[]
[]
[]
[]
[]
[]
[]
[]
[]
[]
[]
[]
[]
[]
[]
[]
[]
[]
[]
[]
[]
[]
[]
[]
[]
[]
[]
[]
[]
[]
[]
[]
[]
[]
[]
[]
[]
[]
[]
[]
[]
[]
[]
[]
[]
[]
[]
[]
[]
[]
[]
[]
[]
[]
[]
[]
[]
[]
[]
[]
[]
[]
[]
[]
[]
[]
[]
[]
[]
[]
[]
[]
[]
[]
[]
[]
[]
[]
[]
[]
[]
[]
[]
[]
[]
[]
[]
[]
[]
[]
[]
[]
[]
[]
[]
[]
[]
[]
[]
[]
[]
[]
[]
[]
[]
[]
[]
[]
[]
[]
[]
[]
[]
[]
[]
[]
[]
[]
[]
[]
[]
[]
[]
[]
[]
[]
[]
[]
[]
[]
[]
[]
[]
[]
[]
[]
[]
[]
[]
[]
[]
[]
[]
[]
[]
[]
[]
[]
[]
[]
[]
[]
[]
[]
[]
[]
[]
[]
[]
[]
[]
[null,null,null,null,null,null,null,null,null,null,null,null,null,null,null,"19-5001 (букет цветов)",749.93,1000]
[null,null,null,null,null,null,null,null,null,null,null,null,null,null,null,"19-5002 (букет цветов)",1794.82,1000]
[null,null,null,null,null,null,null,null,null,null,null,null,null,null,null,"19-5003 (букет цветов)",1803.66,1000]
[null,null,null,null,null,null,null,null,null,null,null,null,null,null,null,"19-5004 (букет цветов)",1498.2,1000]
[null,null,null,null,null,null,null,null,null,null,null,null,null,null,null,"19-5005 (букет цветов)",2099.71,1000]
[null,null,null,null,null,null,null,null,null,null,null,null,null,null,null,"Декоративные элементы, подпятники",null,1000]
[null,null,null,null,null,null,null,null,null,null,null,null,null,null,null,"1902 (заклёпка)",10.25,1000]
[null,null,null,null,null,null,null,null,null,null,null,null,null,null,null,"1903 (заклёпка)",8.4499999999999993,1000]
[null,null,null,null,null,null,null,null,null,null,null,null,null,null,null,"1904 (заклёпка)",8.4499999999999993,1000]
[null,null,null,null,null,null,null,null,null,null,null,null,null,null,null,"1905 (заклёпка)",16.45,1000]
[null,null,null,null,null,null,null,null,null,null,null,null,null,null,null,"1906 (заклёпка)",3.5,1000]
[null,null,null,null,null,null,null,null,null,null,null,null,null,null,null,"1907 (заклёпка)",16.45,1000]
[null,null,null,null,null,null,null,null,null,null,null,null,null,null,null,"1909 (декор. заклёпка)",17.98,1000]
[null,null,null,null,null,null,null,null,null,null,null,null,null,null,null,"1910 (декор. заклёпка)",22,1000]
[null,null,null,null,null,null,null,null,null,null,null,null,null,null,null,1912,11.41,1000]
[null,null,null,null,null,null,null,null,null,null,null,null,null,null,null,"19-3026-30 (отв. 30 мм)",48.13,1000]
[null,null,null,null,null,null,null,null,null,null,null,null,null,null,null,"19-3026-40 (отв. 40 мм)",48.9,1000]
[null,null,null,null,null,null,null,null,null,null,null,null,null,null,null,19419,598,1000]
[null,null,null,null,null,null,null,null,null,null,null,null,null,null,null,"19420 (литьё, резьба М5)",989,1000]
[null,null,null,null,null,null,null,null,null,null,null,null,null,null,null,19421,48.5,1000]
[null,null,null,null,null,null,null,null,null,null,null,null,null,null,null,19424,49.9,1000]
[null,null,null,null,null,null,null,null,null,null,null,null,null,null,null,19425,125,1000]
[null,null,null,null,null,null,null,null,null,null,null,null,null,null,null,"19428 (латунь)",1698,1000]
[null,null,null,null,null,null,null,null,null,null,null,null,null,null,null,"19429/3",59.5,1000]
[null,null,null,null,null,null,null,null,null,null,null,null,null,null,null,19430,10.9,1000]
[null,null,null,null,null,null,null,null,null,null,null,null,null,null,null,19431,14.48,1000]
[null,null,null,null,null,null,null,null,null,null,null,null,null,null,null,19433,14.48,1000]
[null,null,null,null,null,null,null,null,null,null,null,null,null,null,null,19434,19.48,1000]
[null,null,null,null,null,null,null,null,null,null,null,null,null,null,null,19435,29.98,1000]
[null,null,null,null,null,null,null,null,null,null,null,null,null,null,null,"19439/3",193.5,1000]
[null,null,null,null,null,null,null,null,null,null,null,null,null,null,null,19440,44.87,1000]
[null,null,null,null,null,null,null,null,null,null,null,null,null,null,null,19441,12.89,1000]
[null,null,null,null,null,null,null,null,null,null,null,null,null,null,null,19442,189.97,1000]
[null,null,null,null,null,null,null,null,null,null,null,null,null,null,null,19443,82.97,1000]
[null,null,null,null,null,null,null,null,null,null,null,null,null,null,null,19444,99.42,1000]
[null,null,null,null,null,null,null,null,null,null,null,null,null,null,null,19445,37.869999999999997,1000]
[null,null,null,null,null,null,null,null,null,null,null,null,null,null,null,"19446 (литьё, резьба М5)",53.5,1000]
[null,null,null,null,null,null,null,null,null,null,null,null,null,null,null,"19447 (литьё, резьба М6)",108,1000]
[null,null,null,null,null,null,null,null,null,null,null,null,null,null,null,19448,71.38,1000]
[null,null,null,null,null,null,null,null,null,null,null,null,null,null,null,"19449/3",442,1000]
[null,null,null,null,null,null,null,null,null,null,null,null,null,null,null,"19449/9 (чугун)",442,1000]
[null,null,null,null,null,null,null,null,null,null,null,null,null,null,null,19450,148,1000]
[null,null,null,null,null,null,null,null,null,null,null,null,null,null,null,19451,89,1000]
[null,null,null,null,null,null,null,null,null,null,null,null,null,null,null,19454,123,1000]
[null,null,null,null,null,null,null,null,null,null,null,null,null,null,null,"19456 (без отв.)",29.98,1000]
[null,null,null,null,null,null,null,null,null,null,null,null,null,null,null,"19456-12 (отв. 12 мм.)",36.89,1000]
[null,null,null,null,null,null,null,null,null,null,null,null,null,null,null,"19456-16 (отв. 16 мм.)",36.89,1000]
[null,null,null,null,null,null,null,null,null,null,null,null,null,null,null,"19456-24 (отв. 24 мм.)",39.35,1000]
[null,null,null,null,null,null,null,null,null,null,null,null,null,null,null,"19457 (без отв.)",31.43,1000]
[null,null,null,null,null,null,null,null,null,null,null,null,null,null,null,"19457-12 (отв. 12 мм.)",37.770000000000003,1000]
[null,null,null,null,null,null,null,null,null,null,null,null,null,null,null,"19457-16 (отв. 16 мм.)",42.58,1000]
[null,null,null,null,null,null,null,null,null,null,null,null,null,null,null,"19457-24 (отв. 24 мм.)",42.58,1000]
[null,null,null,null,null,null,null,null,null,null,null,null,null,null,null,19458,29.94,1000]
[null,null,null,null,null,null,null,null,null,null,null,null,null,null,null,19459,23.68,1000]
[null,null,null,null,null,null,null,null,null,null,null,null,null,null,null,19460,158.6,1000]
[null,null,null,null,null,null,null,null,null,null,null,null,null,null,null,"19461-12/40 (отв.12х12 мм)",44.5,1000]
[null,null,null,null,null,null,null,null,null,null,null,null,null,null,null,"19461-14/40 (отв.14х14 мм)",44.5,1000]
[null,null,null,null,null,null,null,null,null,null,null,null,null,null,null,"19461-16/40 (отв.16х16 мм)",44.5,1000]
[null,null,null,null,null,null,null,null,null,null,null,null,null,null,null,"19461-20/50 (отв.20х20 мм)",51.9,1000]
[null,null,null,null,null,null,null,null,null,null,null,null,null,null,null,"19461-25/60 (отв.25х25 мм)",61.5,1000]
[null,null,null,null,null,null,null,null,null,null,null,null,null,null,null,"19461-30/60 (отв.30х30 мм)",59.9,1000]
[null,null,null,null,null,null,null,null,null,null,null,null,null,null,null,"19461-30/80 (отв.30х30 мм)",93,1000]
[null,null,null,null,null,null,null,null,null,null,null,null,null,null,null,"19461-40/80 (отв.40х40 мм)",93,1000]
[null,null,null,null,null,null,null,null,null,null,null,null,null,null,null,19462,236.9,1000]
[null,null,null,null,null,null,null,null,null,null,null,null,null,null,null,19463,104,1000]
[null,null,null,null,null,null,null,null,null,null,null,null,null,null,null,"19463-30 (отв. 30х30 мм)",104,1000]
[null,null,null,null,null,null,null,null,null,null,null,null,null,null,null,"19464-14 (отв. 14х14 мм)",42,1000]
[null,null,null,null,null,null,null,null,null,null,null,null,null,null,null,"19464-20 (отв. 20х20 мм)",119.9,1000]
[null,null,null,null,null,null,null,null,null,null,null,null,null,null,null,"19464-25 (отв. 25х25 мм)",99.5,1000]
[null,null,null,null,null,null,null,null,null,null,null,null,null,null,null,"19464-30 (отв. 30х30 мм)",119.9,1000]
[null,null,null,null,null,null,null,null,null,null,null,null,null,null,null,"19464-40 (отв. 40х40 мм)",119.9,1000]
[null,null,null,null,null,null,null,null,null,null,null,null,null,null,null,"19464-40х20 (отв.40х20 мм)",119.9,1000]
[null,null,null,null,null,null,null,null,null,null,null,null,null,null,null,"19465 (без отв.)",21.98,1000]
[null,null,null,null,null,null,null,null,null,null,null,null,null,null,null,"19465-12 (отв. 12х12 мм)",34.49,1000]
[null,null,null,null,null,null,null,null,null,null,null,null,null,null,null,"19465-16 (отв. 16х16 мм)",36.96,1000]
[null,null,null,null,null,null,null,null,null,null,null,null,null,null,null,"19465-24 (отв. 24х24 мм)",36.96,1000]
[null,null,null,null,null,null,null,null,null,null,null,null,null,null,null,"19466-12 (отв.D 12 мм)",53,1000]
[null,null,null,null,null,null,null,null,null,null,null,null,null,null,null,19467,66.489999999999995,1000]
[null,null,null,null,null,null,null,null,null,null,null,null,null,null,null,"19467-20 (отв. 20х20 мм)",78.98,1000]
[null,null,null,null,null,null,null,null,null,null,null,null,null,null,null,"19467-25 (отв. 25х25 мм)",78.98,1000]
[null,null,null,null,null,null,null,null,null,null,null,null,null,null,null,"19467-30 (отв. 30х30 мм)",78.98,1000]
[null,null,null,null,null,null,null,null,null,null,null,null,null,null,null,"19467-40 (отв. 40х40 мм)",78.98,1000]
[null,null,null,null,null,null,null,null,null,null,null,null,null,null,null,19468,88.5,1000]
[null,null,null,null,null,null,null,null,null,null,null,null,null,null,null,19469,174,1000]
[null,null,null,null,null,null,null,null,null,null,null,null,null,null,null,19470,67.319999999999993,1000]
[null,null,null,null,null,null,null,null,null,null,null,null,null,null,null,"19470-12 (отв. 12х12 мм)",72.27,1000]
[null,null,null,null,null,null,null,null,null,null,null,null,null,null,null,"19470-20 (отв. 20х20 мм)",76.5,1000]
[null,null,null,null,null,null,null,null,null,null,null,null,null,null,null,"19470-25 (отв. 25х25 мм)",76.5,1000]
[null,null,null,null,null,null,null,null,null,null,null,null,null,null,null,"19470-30 (отв. 30х30 мм)",76.5,1000]
[null,null,null,null,null,null,null,null,null,null,null,null,null,null,null,"19470-40 (отв. 40х40 мм)",76.5,1000]
[null,null,null,null,null,null,null,null,null,null,null,null,null,null,null,"19471-12/40",43.5,1000]
[null,null,null,null,null,null,null,null,null,null,null,null,null,null,null,"19471-14/40",43.5,1000]
[null,null,null,null,null,null,null,null,null,null,null,null,null,null,null,"19471-16/40",43.5,1000]
[null,null,null,null,null,null,null,null,null,null,null,null,null,null,null,"19471-20/50",49.95,1000]
[null,null,null,null,null,null,null,null,null,null,null,null,null,null,null,"19471-25/60",61.5,1000]
[null,null,null,null,null,null,null,null,null,null,null,null,null,null,null,"19471-30/80",87.4,1000]
[null,null,null,null,null,null,null,null,null,null,null,null,null,null,null,"19471-40/80",87.4,1000]
[null,null,null,null,null,null,null,null,null,null,null,null,null,null,null,"19472-12",51,1000]
[null,null,null,null,null,null,null,null,null,null,null,null,null,null,null,19473,45.45,1000]
[null,null,null,null,null,null,null,null,null,null,null,null,null,null,null,"19473-20",61.85,1000]
[null,null,null,null,null,null,null,null,null,null,null,null,null,null,null,"19473-25",61.85,1000]
[null,null,null,null,null,null,null,null,null,null,null,null,null,null,null,"19473-30",61.85,1000]
[null,null,null,null,null,null,null,null,null,null,null,null,null,null,null,"19474-12",67.5,1000]
[null,null,null,null,null,null,null,null,null,null,null,null,null,null,null,"19474-14",29.9,1000]
[null,null,null,null,null,null,null,null,null,null,null,null,null,null,null,"19475-12 (отв. 12х12 мм)",10.49,1000]
[null,null,null,null,null,null,null,null,null,null,null,null,null,null,null,"19475-14 (отв. 14х14 мм)",10.49,1000]
[null,null,null,null,null,null,null,null,null,null,null,null,null,null,null,"19475-16 (отв. 16х16 мм)",10.49,1000]
[null,null,null,null,null,null,null,null,null,null,null,null,null,null,null,"19475-20 (отв. 20х20 мм)",11.98,1000]
[null,null,null,null,null,null,null,null,null,null,null,null,null,null,null,"19475-25 (отв. 25х25 мм)",21.39,1000]
[null,null,null,null,null,null,null,null,null,null,null,null,null,null,null,"19475-30 (отв. 30х30 мм)",21.39,1000]
[null,null,null,null,null,null,null,null,null,null,null,null,null,null,null,"19475-40 (отв. 40х40 мм)",28.56,1000]
[null,null,null,null,null,null,null,null,null,null,null,null,null,null,null,"19475-40х10(отв.40х10 мм)",14.95,1000]
[null,null,null,null,null,null,null,null,null,null,null,null,null,null,null,"19475-40х20(отв.40х20 мм)",22.42,1000]
[null,null,null,null,null,null,null,null,null,null,null,null,null,null,null,"19475-50 (отв. 50х50 мм)",28.99,1000]
[null,null,null,null,null,null,null,null,null,null,null,null,null,null,null,"19475-60 (отв. 60х60 мм)",29.8,1000]
[null,null,null,null,null,null,null,null,null,null,null,null,null,null,null,"19475-60х40(отв.60х40 мм)",29.34,1000]
[null,null,null,null,null,null,null,null,null,null,null,null,null,null,null,"19475-80 (отв. 80х80 мм)",35.840000000000003,1000]
[null,null,null,null,null,null,null,null,null,null,null,null,null,null,null,"19475-100 (отв.100х100мм)",39.630000000000003,1000]
[null,null,null,null,null,null,null,null,null,null,null,null,null,null,null,"19475-WH/44",12.22,1000]
[null,null,null,null,null,null,null,null,null,null,null,null,null,null,null,"19475-WH/58",14.68,1000]
[null,null,null,null,null,null,null,null,null,null,null,null,null,null,null,"19475-WH/80",24.39,1000]
[null,null,null,null,null,null,null,null,null,null,null,null,null,null,null,"19475-WH/90",29.82,1000]
[null,null,null,null,null,null,null,null,null,null,null,null,null,null,null,"19475-WH/100",34.97,1000]
[null,null,null,null,null,null,null,null,null,null,null,null,null,null,null,"19476-12 (штамп.)",9.9700000000000006,1000]
[null,null,null,null,null,null,null,null,null,null,null,null,null,null,null,"19476-14 (штамп.)",9.9700000000000006,1000]
[null,null,null,null,null,null,null,null,null,null,null,null,null,null,null,"19476-16 (штамп.)",9.9700000000000006,1000]
[null,null,null,null,null,null,null,null,null,null,null,null,null,null,null,"19476-25 (отв.D 25 мм)",15.99,1000]
[null,null,null,null,null,null,null,null,null,null,null,null,null,null,null,"19476-28 (отв.D 28 мм)",15.99,1000]
[null,null,null,null,null,null,null,null,null,null,null,null,null,null,null,"19476-30/60 см.19486-30/60",null,1000]
[null,null,null,null,null,null,null,null,null,null,null,null,null,null,null,"19476-32 (отв.D 32 мм)",15.99,1000]
[null,null,null,null,null,null,null,null,null,null,null,null,null,null,null,"19476-38 (отв.D 38 мм)",24.89,1000]
[null,null,null,null,null,null,null,null,null,null,null,null,null,null,null,"19476-40/80 см.19486-40/80",null,1000]
[null,null,null,null,null,null,null,null,null,null,null,null,null,null,null,"19476-42 (отв.D 42 мм)",22.42,1000]
[null,null,null,null,null,null,null,null,null,null,null,null,null,null,null,"19476-48 (отв.D 48 мм)",21.75,1000]
[null,null,null,null,null,null,null,null,null,null,null,null,null,null,null,"19476-51 (отв.D 51 мм)",27.69,1000]
[null,null,null,null,null,null,null,null,null,null,null,null,null,null,null,"19476-60 (отв.D 60 мм)",27.69,1000]
[null,null,null,null,null,null,null,null,null,null,null,null,null,null,null,"19476-WH/47",10.86,1000]
[null,null,null,null,null,null,null,null,null,null,null,null,null,null,null,"19476-WH/80",19.309999999999999,1000]
[null,null,null,null,null,null,null,null,null,null,null,null,null,null,null,"19476-WH/97",26.73,1000]
[null,null,null,null,null,null,null,null,null,null,null,null,null,null,null,"19476-WH/110",35.19,1000]
[null,null,null,null,null,null,null,null,null,null,null,null,null,null,null,"19477-30 (на тр.D 30мм)",7.99,1000]
[null,null,null,null,null,null,null,null,null,null,null,null,null,null,null,"19477-33 (на тр.D 33мм)",8.59,1000]
[null,null,null,null,null,null,null,null,null,null,null,null,null,null,null,"19477-42 (на тр.D 42мм)",9.7799999999999994,1000]
[null,null,null,null,null,null,null,null,null,null,null,null,null,null,null,"19477-48 (на тр.D 48мм)",12.69,1000]
[null,null,null,null,null,null,null,null,null,null,null,null,null,null,null,"19477-51 (на тр.D 51мм)",13.84,1000]
[null,null,null,null,null,null,null,null,null,null,null,null,null,null,null,"19477-60 (на тр.D 60мм)",15.78,1000]
[null,null,null,null,null,null,null,null,null,null,null,null,null,null,null,"19477-76 (на тр.D 76мм)",18.79,1000]
[null,null,null,null,null,null,null,null,null,null,null,null,null,null,null,"19477-90 (на тр.D 90мм)",21.32,1000]
[null,null,null,null,null,null,null,null,null,null,null,null,null,null,null,"19477-101(на тр.D101мм)",29.69,1000]
[null,null,null,null,null,null,null,null,null,null,null,null,null,null,null,"19477-114(на тр.D114мм)",32.42,1000]
[null,null,null,null,null,null,null,null,null,null,null,null,null,null,null,"19478-32 (загл. D32мм)",12.56,1000]
[null,null,null,null,null,null,null,null,null,null,null,null,null,null,null,"19478-38 (загл. D38мм)",16.829999999999998,1000]
[null,null,null,null,null,null,null,null,null,null,null,null,null,null,null,"19478-42 (загл. D42мм)",17.32,1000]
[null,null,null,null,null,null,null,null,null,null,null,null,null,null,null,"19478-48 (загл. D48мм)",26.46,1000]
[null,null,null,null,null,null,null,null,null,null,null,null,null,null,null,"19478-51 (загл. D51мм)",21.98,1000]
[null,null,null,null,null,null,null,null,null,null,null,null,null,null,null,"19478-60 (загл. D60мм)",25.98,1000]
[null,null,null,null,null,null,null,null,null,null,null,null,null,null,null,"19479-30х30/57",67.97,1000]
[null,null,null,null,null,null,null,null,null,null,null,null,null,null,null,"19479-32/57",67.97,1000]
[null,null,null,null,null,null,null,null,null,null,null,null,null,null,null,"19479-42/57",67.97,1000]
[null,null,null,null,null,null,null,null,null,null,null,null,null,null,null,"19479-32/60",67.97,1000]
[null,null,null,null,null,null,null,null,null,null,null,null,null,null,null,"19479-42/60",67.97,1000]
[null,null,null,null,null,null,null,null,null,null,null,null,null,null,null,"19479-40x40/76",87.69,1000]
[null,null,null,null,null,null,null,null,null,null,null,null,null,null,null,"19479-42/76",87.69,1000]
[null,null,null,null,null,null,null,null,null,null,null,null,null,null,null,"19479-57/76",87.69,1000]
[null,null,null,null,null,null,null,null,null,null,null,null,null,null,null,"19479-60/76",87.69,1000]
[null,null,null,null,null,null,null,null,null,null,null,null,null,null,null,"19479-42/89",92.56,1000]
[null,null,null,null,null,null,null,null,null,null,null,null,null,null,null,"19479-57/89",92.56,1000]
[null,null,null,null,null,null,null,null,null,null,null,null,null,null,null,"19479-60/89",92.56,1000]
[null,null,null,null,null,null,null,null,null,null,null,null,null,null,null,"19479-40x40/102",112.94,1000]
[null,null,null,null,null,null,null,null,null,null,null,null,null,null,null,"19479-50x50/102",112.94,1000]
[null,null,null,null,null,null,null,null,null,null,null,null,null,null,null,"19479-60x60/102",112.94,1000]
[null,null,null,null,null,null,null,null,null,null,null,null,null,null,null,"19479-57/102",112.94,1000]
[null,null,null,null,null,null,null,null,null,null,null,null,null,null,null,"19479-76/102",112.94,1000]
[null,null,null,null,null,null,null,null,null,null,null,null,null,null,null,"19479-57/133",199.46,1000]
[null,null,null,null,null,null,null,null,null,null,null,null,null,null,null,"19479-60/133",199.46,1000]
[null,null,null,null,null,null,null,null,null,null,null,null,null,null,null,"19479-76/133",199.46,1000]
[null,null,null,null,null,null,null,null,null,null,null,null,null,null,null,"19479-89/133",199.46,1000]
[null,null,null,null,null,null,null,null,null,null,null,null,null,null,null,"19479-102/133",199.46,1000]
[null,null,null,null,null,null,null,null,null,null,null,null,null,null,null,"19479-76/159",216.06,1000]
[null,null,null,null,null,null,null,null,null,null,null,null,null,null,null,"19479-89/159",216.06,1000]
[null,null,null,null,null,null,null,null,null,null,null,null,null,null,null,"19479-102/159",216.06,1000]
[null,null,null,null,null,null,null,null,null,null,null,null,null,null,null,"19479-133/270",298.79000000000002,1000]
[null,null,null,null,null,null,null,null,null,null,null,null,null,null,null,"19479-159/270",298.79000000000002,1000]
[null,null,null,null,null,null,null,null,null,null,null,null,null,null,null,"19480-30 (загл. 30 мм)",8.6199999999999992,1000]
[null,null,null,null,null,null,null,null,null,null,null,null,null,null,null,"19480-40 (загл. 40 мм)",9.89,1000]
[null,null,null,null,null,null,null,null,null,null,null,null,null,null,null,"19480-40х20(загл.40х20мм)",8.9700000000000006,1000]
[null,null,null,null,null,null,null,null,null,null,null,null,null,null,null,"19480-40х30(загл.40х30мм)",9.99,1000]
[null,null,null,null,null,null,null,null,null,null,null,null,null,null,null,"19480-50 (загл. 50 мм)",13.69,1000]
[null,null,null,null,null,null,null,null,null,null,null,null,null,null,null,"19480-60 (загл. 60 мм)",15.64,1000]
[null,null,null,null,null,null,null,null,null,null,null,null,null,null,null,"19480-60х30(загл.60х30мм)",13.28,1000]
[null,null,null,null,null,null,null,null,null,null,null,null,null,null,null,"19480-60х40(загл.60х40мм)",13.75,1000]
[null,null,null,null,null,null,null,null,null,null,null,null,null,null,null,"19480-80 (загл. 80 мм)",22.48,1000]
[null,null,null,null,null,null,null,null,null,null,null,null,null,null,null,"19480-80х40(загл.80х40мм)",14.98,1000]
[null,null,null,null,null,null,null,null,null,null,null,null,null,null,null,"19480-100 (загл.100 мм)",33.81,1000]
[null,null,null,null,null,null,null,null,null,null,null,null,null,null,null,"19480-100/2 (загл.100 мм)",34.369999999999997,1000]
[null,null,null,null,null,null,null,null,null,null,null,null,null,null,null,"19480-100х50 (100х50 мм)",18.89,1000]
[null,null,null,null,null,null,null,null,null,null,null,null,null,null,null,"19480-120 (загл.120 мм)",44.37,1000]
[null,null,null,null,null,null,null,null,null,null,null,null,null,null,null,"19480-150 (загл.150 мм)",51.34,1000]
[null,null,null,null,null,null,null,null,null,null,null,null,null,null,null,"19480-175 (загл.175 мм)",97.24,1000]
[null,null,null,null,null,null,null,null,null,null,null,null,null,null,null,"19480-200 (загл.200 мм)",93.74,1000]
[null,null,null,null,null,null,null,null,null,null,null,null,null,null,null,"19482-57",84.94,1000]
[null,null,null,null,null,null,null,null,null,null,null,null,null,null,null,"19486-12/40 (лит.)",39.9,1000]
[null,null,null,null,null,null,null,null,null,null,null,null,null,null,null,"19486-14/40 (лит.)",39.9,1000]
[null,null,null,null,null,null,null,null,null,null,null,null,null,null,null,"19486-16/40 (лит.)",39.9,1000]
[null,null,null,null,null,null,null,null,null,null,null,null,null,null,null,"19486-30/60 (лит.)",54,1000]
[null,null,null,null,null,null,null,null,null,null,null,null,null,null,null,"19486-40/80 (лит.)",99.5,1000]
[null,null,null,null,null,null,null,null,null,null,null,null,null,null,null,"19488-40",9.49,1000]
[null,null,null,null,null,null,null,null,null,null,null,null,null,null,null,"Лист декоративный (1000 х 2000 мм, тол. 1 мм)",null,1000]
[null,null,null,null,null,null,null,null,null,null,null,null,null,null,null,"100х200-110",2489,1000]
[null,null,null,null,null,null,null,null,null,null,null,null,null,null,null,"100х200-210",2489,1000]
[null,null,null,null,null,null,null,null,null,null,null,null,null,null,null,"100х200-310",2489,1000]
[null,null,null,null,null,null,null,null,null,null,null,null,null,null,null,"100х200-510",2489,1000]
[null,null,null,null,null,null,null,null,null,null,null,null,null,null,null,"100х200-810",2489,1000]
[null,null,null,null,null,null,null,null,null,null,null,null,null,null,null,"Декоративные накладки, уголки",null,1000]
[null,null,null,null,null,null,null,null,null,null,null,null,null,null,null,19390,109.87,1000]
[null,null,null,null,null,null,null,null,null,null,null,null,null,null,null,19391,102.62,1000]
[null,null,null,null,null,null,null,null,null,null,null,null,null,null,null,19458,19.989999999999998,1000]
[null,null,null,null,null,null,null,null,null,null,null,null,null,null,null,19459,19.989999999999998,1000]
[null,null,null,null,null,null,null,null,null,null,null,null,null,null,null,19483,18.54,1000]
[null,null,null,null,null,null,null,null,null,null,null,null,null,null,null,19484,26.55,1000]
[null,null,null,null,null,null,null,null,null,null,null,null,null,null,null,19490,199.79,1000]
[null,null,null,null,null,null,null,null,null,null,null,null,null,null,null,19491,117.86,1000]
[null,null,null,null,null,null,null,null,null,null,null,null,null,null,null,19492,114.86,1000]
[null,null,null,null,null,null,null,null,null,null,null,null,null,null,null,19493,25.98,1000]
[null,null,null,null,null,null,null,null,null,null,null,null,null,null,null,19494,29.8,1000]
[null,null,null,null,null,null,null,null,null,null,null,null,null,null,null,19495,35.82,1000]
[null,null,null,null,null,null,null,null,null,null,null,null,null,null,null,19496,59.89,1000]
[null,null,null,null,null,null,null,null,null,null,null,null,null,null,null,19497,89.33,1000]
[null,null,null,null,null,null,null,null,null,null,null,null,null,null,null,19498,49.94,1000]
[null,null,null,null,null,null,null,null,null,null,null,null,null,null,null,19499,22.39,1000]
[null,null,null,null,null,null,null,null,null,null,null,null,null,null,null,19509,105.89,1000]
[null,null,null,null,null,null,null,null,null,null,null,null,null,null,null,19519,297.69,1000]
[null,null,null,null,null,null,null,null,null,null,null,null,null,null,null,19530,151.68,1000]
[null,null,null,null,null,null,null,null,null,null,null,null,null,null,null,19560,150.65,1000]
[null,null,null,null,null,null,null,null,null,null,null,null,null,null,null,19561,116.75,1000]
[null,null,null,null,null,null,null,null,null,null,null,null,null,null,null,19562,187.72,1000]
[null,null,null,null,null,null,null,null,null,null,null,null,null,null,null,19563,227.16,1000]
[null,null,null,null,null,null,null,null,null,null,null,null,null,null,null,19569,56.59,1000]
[null,null,null,null,null,null,null,null,null,null,null,null,null,null,null,19581,35.06,1000]
[null,null,null,null,null,null,null,null,null,null,null,null,null,null,null,19582,24.64,1000]
[null,null,null,null,null,null,null,null,null,null,null,null,null,null,null,19583,114.31,1000]
[null,null,null,null,null,null,null,null,null,null,null,null,null,null,null,19585,15.89,1000]
[null,null,null,null,null,null,null,null,null,null,null,null,null,null,null,19586,75.37,1000]
[null,null,null,null,null,null,null,null,null,null,null,null,null,null,null,19587,53.54,1000]
[null,null,null,null,null,null,null,null,null,null,null,null,null,null,null,19588,44.42,1000]
[null,null,null,null,null,null,null,null,null,null,null,null,null,null,null,19590,150.93,1000]
[null,null,null,null,null,null,null,null,null,null,null,null,null,null,null,19591,101.86,1000]
[null,null,null,null,null,null,null,null,null,null,null,null,null,null,null,19592,79.790000000000006,1000]
[null,null,null,null,null,null,null,null,null,null,null,null,null,null,null,19593,25.14,1000]
[null,null,null,null,null,null,null,null,null,null,null,null,null,null,null,19594,22.27,1000]
[null,null,null,null,null,null,null,null,null,null,null,null,null,null,null,19595,57.95,1000]
[null,null,null,null,null,null,null,null,null,null,null,null,null,null,null,19596,46.99,1000]
[null,null,null,null,null,null,null,null,null,null,null,null,null,null,null,19597,34.5,1000]
[null,null,null,null,null,null,null,null,null,null,null,null,null,null,null,19598,37,1000]
[null,null,null,null,null,null,null,null,null,null,null,null,null,null,null,19599,154.91999999999999,1000]
[null,null,null,null,null,null,null,null,null,null,null,null,null,null,null,19640,null,1000]
[null,null,null,null,null,null,null,null,null,null,null,null,null,null,null,19681,113.46,1000]
[null,null,null,null,null,null,null,null,null,null,null,null,null,null,null,19682,153.09,1000]
[null,null,null,null,null,null,null,null,null,null,null,null,null,null,null,19683,106.73,1000]
[null,null,null,null,null,null,null,null,null,null,null,null,null,null,null,19684,89.95,1000]
[null,null,null,null,null,null,null,null,null,null,null,null,null,null,null,19685,44.47,1000]
[null,null,null,null,null,null,null,null,null,null,null,null,null,null,null,19686,77.66,1000]
[null,null,null,null,null,null,null,null,null,null,null,null,null,null,null,19687,62.16,1000]
[null,null,null,null,null,null,null,null,null,null,null,null,null,null,null,19689,73.11,1000]
[null,null,null,null,null,null,null,null,null,null,null,null,null,null,null,19690,341.53,1000]
[null,null,null,null,null,null,null,null,null,null,null,null,null,null,null,19691,240.85,1000]
[null,null,null,null,null,null,null,null,null,null,null,null,null,null,null,19692,269.16000000000003,1000]
[null,null,null,null,null,null,null,null,null,null,null,null,null,null,null,19693,198.91,1000]
[null,null,null,null,null,null,null,null,null,null,null,null,null,null,null,19694,260.13,1000]
[null,null,null,null,null,null,null,null,null,null,null,null,null,null,null,19695,208.16,1000]
[null,null,null,null,null,null,null,null,null,null,null,null,null,null,null,19696,199.76,1000]
[null,null,null,null,null,null,null,null,null,null,null,null,null,null,null,19697,66.400000000000006,1000]
[null,null,null,null,null,null,null,null,null,null,null,null,null,null,null,19698,27.82,1000]
[null,null,null,null,null,null,null,null,null,null,null,null,null,null,null,19699,88.84,1000]
[null,null,null,null,null,null,null,null,null,null,null,null,null,null,null,19761,355.55,1000]
[null,null,null,null,null,null,null,null,null,null,null,null,null,null,null,19762,270.47000000000003,1000]
[null,null,null,null,null,null,null,null,null,null,null,null,null,null,null,19763,167.65,1000]
[null,null,null,null,null,null,null,null,null,null,null,null,null,null,null,19764,98.98,1000]
[null,null,null,null,null,null,null,null,null,null,null,null,null,null,null,19765,121.25,1000]
[null,null,null,null,null,null,null,null,null,null,null,null,null,null,null,19766,314.95999999999998,1000]
[null,null,null,null,null,null,null,null,null,null,null,null,null,null,null,19771,211.47,1000]
[null,null,null,null,null,null,null,null,null,null,null,null,null,null,null,19772,159.93,1000]
[null,null,null,null,null,null,null,null,null,null,null,null,null,null,null,19773,311.61,1000]
[null,null,null,null,null,null,null,null,null,null,null,null,null,null,null,19774,86.19,1000]
[null,null,null,null,null,null,null,null,null,null,null,null,null,null,null,19775,66.23,1000]
[null,null,null,null,null,null,null,null,null,null,null,null,null,null,null,19776,57.65,1000]
[null,null,null,null,null,null,null,null,null,null,null,null,null,null,null,19782,37.56,1000]
[null,null,null,null,null,null,null,null,null,null,null,null,null,null,null,19784,31.76,1000]
[null,null,null,null,null,null,null,null,null,null,null,null,null,null,null,19785,32.1,1000]
[null,null,null,null,null,null,null,null,null,null,null,null,null,null,null,19786,58.77,1000]
[null,null,null,null,null,null,null,null,null,null,null,null,null,null,null,19787,77.81,1000]
[null,null,null,null,null,null,null,null,null,null,null,null,null,null,null,19791,69.39,1000]
[null,null,null,null,null,null,null,null,null,null,null,null,null,null,null,19792,113.7,1000]
[null,null,null,null,null,null,null,null,null,null,null,null,null,null,null,19793,175.18,1000]
[null,null,null,null,null,null,null,null,null,null,null,null,null,null,null,19794,65.14,1000]
[null,null,null,null,null,null,null,null,null,null,null,null,null,null,null,19795,49.74,1000]
[null,null,null,null,null,null,null,null,null,null,null,null,null,null,null,19796,123.62,1000]
[null,null,null,null,null,null,null,null,null,null,null,null,null,null,null,19797,173.31,1000]
[null,null,null,null,null,null,null,null,null,null,null,null,null,null,null,19798,108.78,1000]
[null,null,null,null,null,null,null,null,null,null,null,null,null,null,null,19799,108.94,1000]
[null,null,null,null,null,null,null,null,null,null,null,null,null,null,null,"19800 (жиковина кованая)",323.5,1000]
[null,null,null,null,null,null,null,null,null,null,null,null,null,null,null,19812,21.98,1000]
[null,null,null,null,null,null,null,null,null,null,null,null,null,null,null,19813,12.75,1000]
[null,null,null,null,null,null,null,null,null,null,null,null,null,null,null,19815,83.23,1000]
[null,null,null,null,null,null,null,null,null,null,null,null,null,null,null,19821,31.21,1000]
[null,null,null,null,null,null,null,null,null,null,null,null,null,null,null,19822,8.9700000000000006,1000]
[null,null,null,null,null,null,null,null,null,null,null,null,null,null,null,19824,25.46,1000]
[null,null,null,null,null,null,null,null,null,null,null,null,null,null,null,19825,24.51,1000]
[null,null,null,null,null,null,null,null,null,null,null,null,null,null,null,19830,146.87,1000]
[null,null,null,null,null,null,null,null,null,null,null,null,null,null,null,19831,111.15,1000]
[null,null,null,null,null,null,null,null,null,null,null,null,null,null,null,19832,49.12,1000]
[null,null,null,null,null,null,null,null,null,null,null,null,null,null,null,19833,59.03,1000]
[null,null,null,null,null,null,null,null,null,null,null,null,null,null,null,19834,93.52,1000]
[null,null,null,null,null,null,null,null,null,null,null,null,null,null,null,19835,54.65,1000]
[null,null,null,null,null,null,null,null,null,null,null,null,null,null,null,19836,62.75,1000]
[null,null,null,null,null,null,null,null,null,null,null,null,null,null,null,19837,125.21,1000]
[null,null,null,null,null,null,null,null,null,null,null,null,null,null,null,19838,124.25,1000]
[null,null,null,null,null,null,null,null,null,null,null,null,null,null,null,19839,117.85,1000]
[null,null,null,null,null,null,null,null,null,null,null,null,null,null,null,19841,15.06,1000]
[null,null,null,null,null,null,null,null,null,null,null,null,null,null,null,19843,28.47,1000]
[null,null,null,null,null,null,null,null,null,null,null,null,null,null,null,19844,82.38,1000]
[null,null,null,null,null,null,null,null,null,null,null,null,null,null,null,19845,20.65,1000]
[null,null,null,null,null,null,null,null,null,null,null,null,null,null,null,19846,34.71,1000]
[null,null,null,null,null,null,null,null,null,null,null,null,null,null,null,19847,22.59,1000]
[null,null,null,null,null,null,null,null,null,null,null,null,null,null,null,19848,37.67,1000]
[null,null,null,null,null,null,null,null,null,null,null,null,null,null,null,19851,39.979999999999997,1000]
[null,null,null,null,null,null,null,null,null,null,null,null,null,null,null,19852,151.09,1000]
[null,null,null,null,null,null,null,null,null,null,null,null,null,null,null,19853,51.69,1000]
[null,null,null,null,null,null,null,null,null,null,null,null,null,null,null,19854,52.73,1000]
[null,null,null,null,null,null,null,null,null,null,null,null,null,null,null,19855,43.6,1000]
[null,null,null,null,null,null,null,null,null,null,null,null,null,null,null,19856,149.38999999999999,1000]
[null,null,null,null,null,null,null,null,null,null,null,null,null,null,null,19860,52.89,1000]
[null,null,null,null,null,null,null,null,null,null,null,null,null,null,null,19861,22.05,1000]
[null,null,null,null,null,null,null,null,null,null,null,null,null,null,null,19862,139.46,1000]
[null,null,null,null,null,null,null,null,null,null,null,null,null,null,null,19863,27.97,1000]
[null,null,null,null,null,null,null,null,null,null,null,null,null,null,null,19864,84.55,1000]
[null,null,null,null,null,null,null,null,null,null,null,null,null,null,null,19865,45.57,1000]
[null,null,null,null,null,null,null,null,null,null,null,null,null,null,null,19866,48.66,1000]
[null,null,null,null,null,null,null,null,null,null,null,null,null,null,null,19867,92.69,1000]
[null,null,null,null,null,null,null,null,null,null,null,null,null,null,null,19868,53.24,1000]
[null,null,null,null,null,null,null,null,null,null,null,null,null,null,null,19869,48.32,1000]
[null,null,null,null,null,null,null,null,null,null,null,null,null,null,null,19870,52.54,1000]
[null,null,null,null,null,null,null,null,null,null,null,null,null,null,null,19871,40.159999999999997,1000]
[null,null,null,null,null,null,null,null,null,null,null,null,null,null,null,19872,96.39,1000]
[null,null,null,null,null,null,null,null,null,null,null,null,null,null,null,19873,78.87,1000]
[null,null,null,null,null,null,null,null,null,null,null,null,null,null,null,19874,48.29,1000]
[null,null,null,null,null,null,null,null,null,null,null,null,null,null,null,19875,98.67,1000]
[null,null,null,null,null,null,null,null,null,null,null,null,null,null,null,19876,104.01,1000]
[null,null,null,null,null,null,null,null,null,null,null,null,null,null,null,19877,118.46,1000]
[null,null,null,null,null,null,null,null,null,null,null,null,null,null,null,19878,71.540000000000006,1000]
[null,null,null,null,null,null,null,null,null,null,null,null,null,null,null,19879,28.73,1000]
[null,null,null,null,null,null,null,null,null,null,null,null,null,null,null,19880,57.7,1000]
[null,null,null,null,null,null,null,null,null,null,null,null,null,null,null,19881,138.32,1000]
[null,null,null,null,null,null,null,null,null,null,null,null,null,null,null,19882,116.49,1000]
[null,null,null,null,null,null,null,null,null,null,null,null,null,null,null,19883,26.92,1000]
[null,null,null,null,null,null,null,null,null,null,null,null,null,null,null,19884,79.94,1000]
[null,null,null,null,null,null,null,null,null,null,null,null,null,null,null,19885,78.39,1000]
[null,null,null,null,null,null,null,null,null,null,null,null,null,null,null,19886,78.959999999999994,1000]
[null,null,null,null,null,null,null,null,null,null,null,null,null,null,null,19887,95.81,1000]
[null,null,null,null,null,null,null,null,null,null,null,null,null,null,null,19888,166.76,1000]
[null,null,null,null,null,null,null,null,null,null,null,null,null,null,null,19889,188.76,1000]
[null,null,null,null,null,null,null,null,null,null,null,null,null,null,null,19890,230.99,1000]
[null,null,null,null,null,null,null,null,null,null,null,null,null,null,null,19891,287.06,1000]
[null,null,null,null,null,null,null,null,null,null,null,null,null,null,null,19892,177.45,1000]
[null,null,null,null,null,null,null,null,null,null,null,null,null,null,null,19893,226.14,1000]
[null,null,null,null,null,null,null,null,null,null,null,null,null,null,null,19894,76.069999999999993,1000]
[null,null,null,null,null,null,null,null,null,null,null,null,null,null,null,19895,99.86,1000]
[null,null,null,null,null,null,null,null,null,null,null,null,null,null,null,19896,114.34,1000]
[null,null,null,null,null,null,null,null,null,null,null,null,null,null,null,19897,76.180000000000007,1000]
[null,null,null,null,null,null,null,null,null,null,null,null,null,null,null,19898,92.54,1000]
[null,null,null,null,null,null,null,null,null,null,null,null,null,null,null,19899,71.45,1000]
[null,null,null,null,null,null,null,null,null,null,null,null,null,null,null,19990,268.05,1000]
[null,null,null,null,null,null,null,null,null,null,null,null,null,null,null,19991,149.69,1000]
[null,null,null,null,null,null,null,null,null,null,null,null,null,null,null,19992,133.35,1000]
[null,null,null,null,null,null,null,null,null,null,null,null,null,null,null,19993,72.239999999999995,1000]
[null,null,null,null,null,null,null,null,null,null,null,null,null,null,null,19995,137.03,1000]
[null,null,null,null,null,null,null,null,null,null,null,null,null,null,null,19996,332.43,1000]
[null,null,null,null,null,null,null,null,null,null,null,null,null,null,null,"20510 (цифры, h=100 мм)",73.13,1000]
[null,null,null,null,null,null,null,null,null,null,null,null,null,null,null,"20515 (цифры, h=150 мм)",127.53,1000]
[null,null,null,null,null,null,null,null,null,null,null,null,null,null,null,"Ящик почтовый (литьё)",2469,1000]
[null,null,null,null,null,null,null,null,null,null,null,null,null,null,null,"Лев дек. бол. (литьё)",785,1000]
[null,null,null,null,null,null,null,null,null,null,null,null,null,null,null,"Лев дек. D=260 мм(литьё)",499,1000]
[null,null,null,null,null,null,null,null,null,null,null,null,null,null,null,"Лев мал. (литьё)",485,1000]
[null,null,null,null,null,null,null,null,null,null,null,null,null,null,null,"Лев ПЛ. (пластик)",1789.67,1000]
[null,null,null,null,null,null,null,null,null,null,null,null,null,null,null,"Лев БОЛЬШОЙ ПЛ. (пластик)",8360,1000]
[null,null,null,null,null,null,null,null,null,null,null,null,null,null,null,"Грифон декор. (литьё)",314.5,1000]
[null,null,null,null,null,null,null,null,null,null,null,null,null,null,null,"Подкова декор. (литьё)",469.92,1000]
[null,null,null,null,null,null,null,null,null,null,null,null,null,null,null,"Цветок декор. (литьё)",298,1000]
[null,null,null,null,null,null,null,null,null,null,null,null,null,null,null,"Накладки декоративные, дверные ручки",null,1000]
[null,null,null,null,null,null,null,null,null,null,null,null,null,null,null,"РС-001 (ручка дверная)",269.5,1000]
[null,null,null,null,null,null,null,null,null,null,null,null,null,null,null,"РС-002 (ручка дверная)",263.85000000000002,1000]
[null,null,null,null,null,null,null,null,null,null,null,null,null,null,null,"РС-003 (ручка дверная)",330.24,1000]
[null,null,null,null,null,null,null,null,null,null,null,null,null,null,null,"РС-004 (ручка дверная)",317.11,1000]
[null,null,null,null,null,null,null,null,null,null,null,null,null,null,null,"РС-005 (ручка дверная)",658.31,1000]
[null,null,null,null,null,null,null,null,null,null,null,null,null,null,null,"РС-006 (ручка дверная)",696.58,1000]
[null,null,null,null,null,null,null,null,null,null,null,null,null,null,null,"РС-007 (ручка дверная)",615.33000000000004,1000]
[null,null,null,null,null,null,null,null,null,null,null,null,null,null,null,"РС-008 (ручка дверная)",302.97000000000003,1000]
[null,null,null,null,null,null,null,null,null,null,null,null,null,null,null,"РС-009 (ручка дверная)",183.86,1000]
[null,null,null,null,null,null,null,null,null,null,null,null,null,null,null,"РС-010 (ручка дверная)",154.99,1000]
[null,null,null,null,null,null,null,null,null,null,null,null,null,null,null,"РС-011 (ручка дверная)",293.95,1000]
[null,null,null,null,null,null,null,null,null,null,null,null,null,null,null,"РС-012 (ручка дверная)",299.45999999999998,1000]
[null,null,null,null,null,null,null,null,null,null,null,null,null,null,null,"РС-017 (ручка дверная)",362.7,1000]
[null,null,null,null,null,null,null,null,null,null,null,null,null,null,null,"РС-022 (ручка \"Тигр\")",498.9,1000]
[null,null,null,null,null,null,null,null,null,null,null,null,null,null,null,"РС-023 (ручка \"Лев\")",498.9,1000]
[null,null,null,null,null,null,null,null,null,null,null,null,null,null,null,null,null,null,null,null,null,null,null,null,"РС-024 (ручка \"Лев б.\")",569.9,1000]
[null,null,null,null,null,null,null,null,null,null,null,null,null,null,null,null,null,null,null,null,null,null,null,null,"РС-040",246.49,1000]
[null,null,null,null,null,null,null,null,null,null,null,null,null,null,null,null,null,null,null,null,null,null,null,null,"РС-041",219.43,1000]
[null,null,null,null,null,null,null,null,null,null,null,null,null,null,null,null,null,null,null,null,null,null,null,null,"РС-042",238.09,1000]
[null,null,null,null,null,null,null,null,null,null,null,null,null,null,null,null,null,null,null,null,null,null,null,null,"РС-101 (ручка дверная)",397.69,1000]
[null,null,null,null,null,null,null,null,null,null,null,null,null,null,null,null,null,null,null,null,null,null,null,null,"РС-201 (ручка дверная)",569.71,1000]
[null,null,null,null,null,null,null,null,null,null,null,null,null,null,null,null,null,null,null,null,null,null,null,null,"РС-202 (ручка дверная)",483.23,1000]
[null,null,null,null,null,null,null,null,null,null,null,null,null,null,null,null,null,null,null,null,null,null,null,null,"РС-203 (ручка дверная)",518.46,1000]
[null,null,null,null,null,null,null,null,null,null,null,null,null,null,null,null,null,null,null,null,null,null,null,null,"РС-204 (ручка дверная)",498.06,1000]
[null,null,null,null,null,null,null,null,null,null,null,null,null,null,null,null,null,null,null,null,null,null,null,null,"РС-282 (ручка дверная)",445,1000]
[null,null,null,null,null,null,null,null,null,null,null,null,null,null,null,null,null,null,null,null,null,null,null,null,"РС-287 (ручка дверная)",455,1000]
[null,null,null,null,null,null,null,null,null,null,null,null,null,null,null,null,null,null,null,null,null,null,null,null,"РС-288 (ручка дверная)",519,1000]
[null,null,null,null,null,null,null,null,null,null,null,null,null,null,null,null,null,null,null,null,null,null,null,null,"РС-760",92.86,1000]
[null,null,null,null,null,null,null,null,null,null,null,null,null,null,null,null,null,null,null,null,null,null,null,null,"РС-761",99.87,1000]
[null,null,null,null,null,null,null,null,null,null,null,null,null,null,null,null,null,null,null,null,null,null,null,null,"РС-770",99.87,1000]
[null,null,null,null,null,null,null,null,null,null,null,null,null,null,null,null,null,null,null,null,null,null,null,null,19511,67.84,1000]
[null,null,null,null,null,null,null,null,null,null,null,null,null,null,null,null,null,null,null,null,null,null,null,null,19514,133.5,1000]
[null,null,null,null,null,null,null,null,null,null,null,null,null,null,null,null,null,null,null,null,null,null,null,null,"19514-1 (с ручками)",498.99,1000]
[null,null,null,null,null,null,null,null,null,null,null,null,null,null,null,null,null,null,null,null,null,null,null,null,"19514-2 (с ручками)",468,1000]
[null,null,null,null,null,null,null,null,null,null,null,null,null,null,null,null,null,null,null,null,null,null,null,null,"19514-4 (с ручками)",564.87,1000]
[null,null,null,null,null,null,null,null,null,null,null,null,null,null,null,null,null,null,null,null,null,null,null,null,19515,137.88,1000]
[null,null,null,null,null,null,null,null,null,null,null,null,null,null,null,null,null,null,null,null,null,null,null,null,"19515-2 (с ручками)",422.57,1000]
[null,null,null,null,null,null,null,null,null,null,null,null,null,null,null,null,null,null,null,null,null,null,null,null,19516,154,1000]
[null,null,null,null,null,null,null,null,null,null,null,null,null,null,null,null,null,null,null,null,null,null,null,null,"19516-4 (с ручками)",577.33000000000004,1000]
[null,null,null,null,null,null,null,null,null,null,null,null,null,null,null,null,null,null,null,null,null,null,null,null,19517,159.27000000000001,1000]
[null,null,null,null,null,null,null,null,null,null,null,null,null,null,null,null,null,null,null,null,null,null,null,null,"19517-1 (с ручками)",589.63,1000]
[null,null,null,null,null,null,null,null,null,null,null,null,null,null,null,null,null,null,null,null,null,null,null,null,19518,173.53,1000]
[null,null,null,null,null,null,null,null,null,null,null,null,null,null,null,null,null,null,null,null,null,null,null,null,"Добавочные элементы",null,1000]
[null,null,null,null,null,null,null,null,null,null,null,null,null,null,null,null,null,null,null,null,null,null,null,null,19015,39.76,1000]
[null,null,null,null,null,null,null,null,null,null,null,null,null,null,null,null,null,null,null,null,null,null,null,null,"Кованые держатели поручня",null,1000]
[null,null,null,null,null,null,null,null,null,null,null,null,null,null,null,null,null,null,null,null,null,null,null,null,"ДП-001",397,1000]
[null,null,null,null,null,null,null,null,null,null,null,null,null,null,null,null,null,null,null,null,null,null,null,null,"Начальные элементы поручней",null,1000]
[null,null,null,null,null,null,null,null,null,null,null,null,null,null,null,null,null,null,null,null,null,null,null,null,"40101 (40х6)",253.4,1000]
[null,null,null,null,null,null,null,null,null,null,null,null,null,null,null,null,null,null,null,null,null,null,null,null,"40101 (40х11)",795,1000]
[null,null,null,null,null,null,null,null,null,null,null,null,null,null,null,null,null,null,null,null,null,null,null,null,"40101 (50х14)",1098,1000]
[null,null,null,null,null,null,null,null,null,null,null,null,null,null,null,null,null,null,null,null,null,null,null,null,"40101 (52х12)",1088,1000]
[null,null,null,null,null,null,null,null,null,null,null,null,null,null,null,null,null,null,null,null,null,null,null,null,"40102 (40х6)",222.24,1000]
[null,null,null,null,null,null,null,null,null,null,null,null,null,null,null,null,null,null,null,null,null,null,null,null,"40102 (40х11)",375,1000]
[null,null,null,null,null,null,null,null,null,null,null,null,null,null,null,null,null,null,null,null,null,null,null,null,"40102 (50х14)",565,1000]
[null,null,null,null,null,null,null,null,null,null,null,null,null,null,null,null,null,null,null,null,null,null,null,null,"40102 (52х12)",375,1000]
[null,null,null,null,null,null,null,null,null,null,null,null,null,null,null,null,null,null,null,null,null,null,null,null,"40103 (40х6)",112.54,1000]
[null,null,null,null,null,null,null,null,null,null,null,null,null,null,null,null,null,null,null,null,null,null,null,null,"40103 (40х11)",375,1000]
[null,null,null,null,null,null,null,null,null,null,null,null,null,null,null,null,null,null,null,null,null,null,null,null,"40103 (50х14)",519,1000]
[null,null,null,null,null,null,null,null,null,null,null,null,null,null,null,null,null,null,null,null,null,null,null,null,"40103 (52х12)",271.39,1000]
[null,null,null,null,null,null,null,null,null,null,null,null,null,null,null,null,null,null,null,null,null,null,null,null,"40103 (60х13)",286.69,1000]
[null,null,null,null,null,null,null,null,null,null,null,null,null,null,null,null,null,null,null,null,null,null,null,null,"40106 (40х11) поворот 90°",765,1000]
[null,null,null,null,null,null,null,null,null,null,null,null,null,null,null,null,null,null,null,null,null,null,null,null,"40107 (40х11) поворот 180°",849,1000]
[null,null,null,null,null,null,null,null,null,null,null,null,null,null,null,null,null,null,null,null,null,null,null,null,"40106 (50х14) поворот 90°",853,1000]
[null,null,null,null,null,null,null,null,null,null,null,null,null,null,null,null,null,null,null,null,null,null,null,null,"40107 (50х14) поворот 180°",924,1000]
[null,null,null,null,null,null,null,null,null,null,null,null,null,null,null,null,null,null,null,null,null,null,null,null,"40108 (52х12) поворот 360° ",1219,1000]
[null,null,null,null,null,null,null,null,null,null,null,null,null,null,null,null,null,null,null,null,null,null,null,null,"40126 (40х11) поворот 90°",593.55999999999995,1000]
[null,null,null,null,null,null,null,null,null,null,null,null,null,null,null,null,null,null,null,null,null,null,null,null,"40127 (40х11) поворот 180°",593.55999999999995,1000]
[null,null,null,null,null,null,null,null,null,null,null,null,null,null,null,null,null,null,null,null,null,null,null,null,"40112 (50х14)",728,1000]
[null,null,null,null,null,null,null,null,null,null,null,null,null,null,null,null,null,null,null,null,null,null,null,null,"Поковки для стоек, вставки в балясины",null,1000]
[null,null,null,null,null,null,null,null,null,null,null,null,null,null,null,null,null,null,null,null,null,null,null,null,81141,62.5,1000]
[null,null,null,null,null,null,null,null,null,null,null,null,null,null,null,null,null,null,null,null,null,null,null,null,81203,103.9,1000]
[null,null,null,null,null,null,null,null,null,null,null,null,null,null,null,null,null,null,null,null,null,null,null,null,81207,64.55,1000]
[null,null,null,null,null,null,null,null,null,null,null,null,null,null,null,null,null,null,null,null,null,null,null,null,81209,134.65,1000]
[null,null,null,null,null,null,null,null,null,null,null,null,null,null,null,null,null,null,null,null,null,null,null,null,81211,195.72,1000]
[null,null,null,null,null,null,null,null,null,null,null,null,null,null,null,null,null,null,null,null,null,null,null,null,"81217/2",95.5,1000]
[null,null,null,null,null,null,null,null,null,null,null,null,null,null,null,null,null,null,null,null,null,null,null,null,81231,58.5,1000]
[null,null,null,null,null,null,null,null,null,null,null,null,null,null,null,null,null,null,null,null,null,null,null,null,81233,158.54,1000]
[null,null,null,null,null,null,null,null,null,null,null,null,null,null,null,null,null,null,null,null,null,null,null,null,81235,149.76,1000]
[null,null,null,null,null,null,null,null,null,null,null,null,null,null,null,null,null,null,null,null,null,null,null,null,81237,98.28,1000]
[null,null,null,null,null,null,null,null,null,null,null,null,null,null,null,null,null,null,null,null,null,null,null,null,81239,88.92,1000]
[null,null,null,null,null,null,null,null,null,null,null,null,null,null,null,null,null,null,null,null,null,null,null,null,81241,73.709999999999994,1000]
[null,null,null,null,null,null,null,null,null,null,null,null,null,null,null,null,null,null,null,null,null,null,null,null,"81242 (кв. 12 мм)",42.9,1000]
[null,null,null,null,null,null,null,null,null,null,null,null,null,null,null,null,null,null,null,null,null,null,null,null,"81244 (кв. 14 мм)",42.9,1000]
[null,null,null,null,null,null,null,null,null,null,null,null,null,null,null,null,null,null,null,null,null,null,null,null,"81248/2 (кв. 20 мм)",118.6,1000]
[null,null,null,null,null,null,null,null,null,null,null,null,null,null,null,null,null,null,null,null,null,null,null,null,"81252 (отв. D 12 мм)",39.9,1000]
[null,null,null,null,null,null,null,null,null,null,null,null,null,null,null,null,null,null,null,null,null,null,null,null,"81254 (отв. D 14 мм)",39.9,1000]
[null,null,null,null,null,null,null,null,null,null,null,null,null,null,null,null,null,null,null,null,null,null,null,null,"81256 (отв. D 16 мм)",39.9,1000]
[null,null,null,null,null,null,null,null,null,null,null,null,null,null,null,null,null,null,null,null,null,null,null,null,"81262 (на кв. 12 мм)",32.5,1000]
[null,null,null,null,null,null,null,null,null,null,null,null,null,null,null,null,null,null,null,null,null,null,null,null,"81264 (на кв. 14 мм)",58,1000]
[null,null,null,null,null,null,null,null,null,null,null,null,null,null,null,null,null,null,null,null,null,null,null,null,"81266 (на кв. 16 мм)",46.5,1000]
[null,null,null,null,null,null,null,null,null,null,null,null,null,null,null,null,null,null,null,null,null,null,null,null,"81268 (на кв. 20 мм)",66.900000000000006,1000]
[null,null,null,null,null,null,null,null,null,null,null,null,null,null,null,null,null,null,null,null,null,null,null,null,"81274 (на кв. 14 мм)",46,1000]
[null,null,null,null,null,null,null,null,null,null,null,null,null,null,null,null,null,null,null,null,null,null,null,null,"81276 (на кв. 16 мм)",46,1000]
[null,null,null,null,null,null,null,null,null,null,null,null,null,null,null,null,null,null,null,null,null,null,null,null,"81282 (на кв. 12 мм)",98.9,1000]
[null,null,null,null,null,null,null,null,null,null,null,null,null,null,null,null,null,null,null,null,null,null,null,null,"81284 (на кв. 14 мм)",152,1000]
[null,null,null,null,null,null,null,null,null,null,null,null,null,null,null,null,null,null,null,null,null,null,null,null,"81286 (на кв. 16 мм)",216,1000]
[null,null,null,null,null,null,null,null,null,null,null,null,null,null,null,null,null,null,null,null,null,null,null,null,"81286/2 (на кв. 16 мм)",59.9,1000]
[null,null,null,null,null,null,null,null,null,null,null,null,null,null,null,null,null,null,null,null,null,null,null,null,"81292 (на кв. 12 мм)",65,1000]
[null,null,null,null,null,null,null,null,null,null,null,null,null,null,null,null,null,null,null,null,null,null,null,null,"81294 (на кв. 14 мм)",109.5,1000]
[null,null,null,null,null,null,null,null,null,null,null,null,null,null,null,null,null,null,null,null,null,null,null,null,"81296 (на кв. 16 мм)",118,1000]
[null,null,null,null,null,null,null,null,null,null,null,null,null,null,null,null,null,null,null,null,null,null,null,null,"81302 (на кв. 12 мм)",79,1000]
[null,null,null,null,null,null,null,null,null,null,null,null,null,null,null,null,null,null,null,null,null,null,null,null,"81304 (на кв. 14 мм)",85,1000]
[null,null,null,null,null,null,null,null,null,null,null,null,null,null,null,null,null,null,null,null,null,null,null,null,"81312 (на кв. 12 мм)",49,1000]
[null,null,null,null,null,null,null,null,null,null,null,null,null,null,null,null,null,null,null,null,null,null,null,null,"81314 (на кв. 14 мм)",63.5,1000]
[null,null,null,null,null,null,null,null,null,null,null,null,null,null,null,null,null,null,null,null,null,null,null,null,"81322 (отв. D 12 мм)",49.9,1000]
[null,null,null,null,null,null,null,null,null,null,null,null,null,null,null,null,null,null,null,null,null,null,null,null,"81324 (отв. D 14 мм)",49.9,1000]
[null,null,null,null,null,null,null,null,null,null,null,null,null,null,null,null,null,null,null,null,null,null,null,null,"81326 (отв. D 16 мм)",49.9,1000]
[null,null,null,null,null,null,null,null,null,null,null,null,null,null,null,null,null,null,null,null,null,null,null,null,"81332 (отв. D 12 мм)",47,1000]
[null,null,null,null,null,null,null,null,null,null,null,null,null,null,null,null,null,null,null,null,null,null,null,null,"81334 (отв. D 14 мм)",47,1000]
[null,null,null,null,null,null,null,null,null,null,null,null,null,null,null,null,null,null,null,null,null,null,null,null,"81336 (отв. D 16 мм)",47,1000]
[null,null,null,null,null,null,null,null,null,null,null,null,null,null,null,null,null,null,null,null,null,null,null,null,81341,109,1000]
[null,null,null,null,null,null,null,null,null,null,null,null,null,null,null,null,null,null,null,null,null,null,null,null,"81348/2 (кв. 20 мм)",109,1000]
[null,null,null,null,null,null,null,null,null,null,null,null,null,null,null,null,null,null,null,null,null,null,null,null,"81352 (на кв. 12 мм)",37.6,1000]
[null,null,null,null,null,null,null,null,null,null,null,null,null,null,null,null,null,null,null,null,null,null,null,null,"81354 (на кв. 14 мм)",37.6,1000]
[null,null,null,null,null,null,null,null,null,null,null,null,null,null,null,null,null,null,null,null,null,null,null,null,"81356 (на кв. 16 мм)",37.6,1000]
[null,null,null,null,null,null,null,null,null,null,null,null,null,null,null,null,null,null,null,null,null,null,null,null,"81372 (на кв. 12 мм)",38,1000]
[null,null,null,null,null,null,null,null,null,null,null,null,null,null,null,null,null,null,null,null,null,null,null,null,"81386 (отв. D 16 мм)",72,1000]
[null,null,null,null,null,null,null,null,null,null,null,null,null,null,null,null,null,null,null,null,null,null,null,null,"81396 (отв. D 16 мм)",46,1000]
[null,null,null,null,null,null,null,null,null,null,null,null,null,null,null,null,null,null,null,null,null,null,null,null,81500,21.16,1000]
[null,null,null,null,null,null,null,null,null,null,null,null,null,null,null,null,null,null,null,null,null,null,null,null,81512,17.079999999999998,1000]
[null,null,null,null,null,null,null,null,null,null,null,null,null,null,null,null,null,null,null,null,null,null,null,null,81542,109.45,1000]
[null,null,null,null,null,null,null,null,null,null,null,null,null,null,null,null,null,null,null,null,null,null,null,null,81584,18.54,1000]
[null,null,null,null,null,null,null,null,null,null,null,null,null,null,null,null,null,null,null,null,null,null,null,null,81586,17.170000000000002,1000]
[null,null,null,null,null,null,null,null,null,null,null,null,null,null,null,null,null,null,null,null,null,null,null,null,81606,19.5,1000]
[null,null,null,null,null,null,null,null,null,null,null,null,null,null,null,null,null,null,null,null,null,null,null,null,81607,24.5,1000]
[null,null,null,null,null,null,null,null,null,null,null,null,null,null,null,null,null,null,null,null,null,null,null,null,81612,43.93,1000]
[null,null,null,null,null,null,null,null,null,null,null,null,null,null,null,null,null,null,null,null,null,null,null,null,"81620 (литьё, отв. D16 мм)",229,1000]
[null,null,null,null,null,null,null,null,null,null,null,null,null,null,null,null,null,null,null,null,null,null,null,null,"81624 (литьё, отв. D16 мм)",267,1000]
[null,null,null,null,null,null,null,null,null,null,null,null,null,null,null,null,null,null,null,null,null,null,null,null,"Вставки из латуни",null,1000]
[null,null,null,null,null,null,null,null,null,null,null,null,null,null,null,null,null,null,null,null,null,null,null,null,"85006 (отв. D=16 мм)",1099,1000]
[null,null,null,null,null,null,null,null,null,null,null,null,null,null,null,null,null,null,null,null,null,null,null,null,"85016 (отв. D=16 мм)",679.5,1000]
[null,null,null,null,null,null,null,null,null,null,null,null,null,null,null,null,null,null,null,null,null,null,null,null,"85026 (отв. D=16 мм)",479,1000]
[null,null,null,null,null,null,null,null,null,null,null,null,null,null,null,null,null,null,null,null,null,null,null,null,"85036 (отв. D=16 мм)",408.6,1000]
[null,null,null,null,null,null,null,null,null,null,null,null,null,null,null,null,null,null,null,null,null,null,null,null,"85340 (отв. D=40 мм)",598.76,1000]
[null,null,null,null,null,null,null,null,null,null,null,null,null,null,null,null,null,null,null,null,null,null,null,null,"Поковки для начальных столбов",null,1000]
[null,null,null,null,null,null,null,null,null,null,null,null,null,null,null,null,null,null,null,null,null,null,null,null,"82403 (дл. 150 мм.)",496,1000]
[null,null,null,null,null,null,null,null,null,null,null,null,null,null,null,null,null,null,null,null,null,null,null,null,"82403-20 (дл. 150 мм.)",196.95,1000]
[null,null,null,null,null,null,null,null,null,null,null,null,null,null,null,null,null,null,null,null,null,null,null,null,"82409 (дл. 150 мм)",215.65,1000]
[null,null,null,null,null,null,null,null,null,null,null,null,null,null,null,null,null,null,null,null,null,null,null,null,"82411 (дл. 200 мм)",588,1000]
[null,null,null,null,null,null,null,null,null,null,null,null,null,null,null,null,null,null,null,null,null,null,null,null,"82419 (дл. 200 мм)",749,1000]
[null,null,null,null,null,null,null,null,null,null,null,null,null,null,null,null,null,null,null,null,null,null,null,null,"82423 (дл. 150 мм)",289.5,1000]
[null,null,null,null,null,null,null,null,null,null,null,null,null,null,null,null,null,null,null,null,null,null,null,null,83030,349,1000]
[null,null,null,null,null,null,null,null,null,null,null,null,null,null,null,null,null,null,null,null,null,null,null,null,"Декоративные группы (розетки,кронштейны)",null,1000]
[null,null,null,null,null,null,null,null,null,null,null,null,null,null,null,null,null,null,null,null,null,null,null,null,"160204 (парный эл.)",1379,1000]
[null,null,null,null,null,null,null,null,null,null,null,null,null,null,null,null,null,null,null,null,null,null,null,null,"160206 (парный эл.)",1799,1000]
[null,null,null,null,null,null,null,null,null,null,null,null,null,null,null,null,null,null,null,null,null,null,null,null,"160216 (парный эл.)",1385,1000]
[null,null,null,null,null,null,null,null,null,null,null,null,null,null,null,null,null,null,null,null,null,null,null,null,160220,3585,1000]
[null,null,null,null,null,null,null,null,null,null,null,null,null,null,null,null,null,null,null,null,null,null,null,null,160505,6956,1000]
[null,null,null,null,null,null,null,null,null,null,null,null,null,null,null,null,null,null,null,null,null,null,null,null,160510,2550,1000]
[null,null,null,null,null,null,null,null,null,null,null,null,null,null,null,null,null,null,null,null,null,null,null,null,160515,3700,1000]
[null,null,null,null,null,null,null,null,null,null,null,null,null,null,null,null,null,null,null,null,null,null,null,null,160525,2998,1000]
[null,null,null,null,null,null,null,null,null,null,null,null,null,null,null,null,null,null,null,null,null,null,null,null,160527,5264,1000]
[null,null,null,null,null,null,null,null,null,null,null,null,null,null,null,null,null,null,null,null,null,null,null,null,161013,1795,1000]
[null,null,null,null,null,null,null,null,null,null,null,null,null,null,null,null,null,null,null,null,null,null,null,null,"161013/2",1599,1000]
[null,null,null,null,null,null,null,null,null,null,null,null,null,null,null,null,null,null,null,null,null,null,null,null,161051,4890,1000]
[null,null,null,null,null,null,null,null,null,null,null,null,null,null,null,null,null,null,null,null,null,null,null,null,161074,236,1000]
[null,null,null,null,null,null,null,null,null,null,null,null,null,null,null,null,null,null,null,null,null,null,null,null,161077,498,1000]
[null,null,null,null,null,null,null,null,null,null,null,null,null,null,null,null,null,null,null,null,null,null,null,null,161129,4360,1000]
[null,null,null,null,null,null,null,null,null,null,null,null,null,null,null,null,null,null,null,null,null,null,null,null,161400,229,1000]
[null,null,null,null,null,null,null,null,null,null,null,null,null,null,null,null,null,null,null,null,null,null,null,null,161702,1280,1000]
[null,null,null,null,null,null,null,null,null,null,null,null,null,null,null,null,null,null,null,null,null,null,null,null,167030,2932,1000]
[null,null,null,null,null,null,null,null,null,null,null,null,null,null,null,null,null,null,null,null,null,null,null,null,167070,4360,1000]
[null,null,null,null,null,null,null,null,null,null,null,null,null,null,null,null,null,null,null,null,null,null,null,null,"Кр-012",436,1000]
[null,null,null,null,null,null,null,null,null,null,null,null,null,null,null,null,null,null,null,null,null,null,null,null,"Кр-021",223,1000]
[null,null,null,null,null,null,null,null,null,null,null,null,null,null,null,null,null,null,null,null,null,null,null,null,"Кр-022 (с розой)",918,1000]
[null,null,null,null,null,null,null,null,null,null,null,null,null,null,null,null,null,null,null,null,null,null,null,null,"Кр-030",1285,1000]
[null,null,null,null,null,null,null,null,null,null,null,null,null,null,null,null,null,null,null,null,null,null,null,null,"Кр-100",1156,1000]
[null,null,null,null,null,null,null,null,null,null,null,null,null,null,null,null,null,null,null,null,null,null,null,null,"Кр-130",1860,1000]
[null,null,null,null,null,null,null,null,null,null,null,null,null,null,null,null,null,null,null,null,null,null,null,null,"Кр-140",2236,1000]
[null,null,null,null,null,null,null,null,null,null,null,null,null,null,null,null,null,null,null,null,null,null,null,null,"Декоративные группы для пр-ва балясин",null,1000]
[null,null,null,null,null,null,null,null,null,null,null,null,null,null,null,null,null,null,null,null,null,null,null,null,126011,327,1000]
[null,null,null,null,null,null,null,null,null,null,null,null,null,null,null,null,null,null,null,null,null,null,null,null,126015,239,1000]
[null,null,null,null,null,null,null,null,null,null,null,null,null,null,null,null,null,null,null,null,null,null,null,null,126023,299,1000]
[null,null,null,null,null,null,null,null,null,null,null,null,null,null,null,null,null,null,null,null,null,null,null,null,126027,92.69,1000]
[null,null,null,null,null,null,null,null,null,null,null,null,null,null,null,null,null,null,null,null,null,null,null,null,126051,435,1000]
[null,null,null,null,null,null,null,null,null,null,null,null,null,null,null,null,null,null,null,null,null,null,null,null,126074,485,1000]
[null,null,null,null,null,null,null,null,null,null,null,null,null,null,null,null,null,null,null,null,null,null,null,null,126076,385,1000]
[null,null,null,null,null,null,null,null,null,null,null,null,null,null,null,null,null,null,null,null,null,null,null,null,"Стойка ограждения (0,80-1,00 м)",null,1000]
[null,null,null,null,null,null,null,null,null,null,null,null,null,null,null,null,null,null,null,null,null,null,null,null,10012,586,1000]
[null,null,null,null,null,null,null,null,null,null,null,null,null,null,null,null,null,null,null,null,null,null,null,null,10015,698,1000]
[null,null,null,null,null,null,null,null,null,null,null,null,null,null,null,null,null,null,null,null,null,null,null,null,10017,765,1000]
[null,null,null,null,null,null,null,null,null,null,null,null,null,null,null,null,null,null,null,null,null,null,null,null,10018,398.5,1000]
[null,null,null,null,null,null,null,null,null,null,null,null,null,null,null,null,null,null,null,null,null,null,null,null,10023,594.6,1000]
[null,null,null,null,null,null,null,null,null,null,null,null,null,null,null,null,null,null,null,null,null,null,null,null,10026,544,1000]
[null,null,null,null,null,null,null,null,null,null,null,null,null,null,null,null,null,null,null,null,null,null,null,null,10033,1120,1000]
[null,null,null,null,null,null,null,null,null,null,null,null,null,null,null,null,null,null,null,null,null,null,null,null,10035,1653,1000]
[null,null,null,null,null,null,null,null,null,null,null,null,null,null,null,null,null,null,null,null,null,null,null,null,10036,1653,1000]
[null,null,null,null,null,null,null,null,null,null,null,null,null,null,null,null,null,null,null,null,null,null,null,null,10041,1784,1000]
[null,null,null,null,null,null,null,null,null,null,null,null,null,null,null,null,null,null,null,null,null,null,null,null,10042,662,1000]
[null,null,null,null,null,null,null,null,null,null,null,null,null,null,null,null,null,null,null,null,null,null,null,null,10051,1330,1000]
[null,null,null,null,null,null,null,null,null,null,null,null,null,null,null,null,null,null,null,null,null,null,null,null,10054,998,1000]
[null,null,null,null,null,null,null,null,null,null,null,null,null,null,null,null,null,null,null,null,null,null,null,null,10055,1390,1000]
[null,null,null,null,null,null,null,null,null,null,null,null,null,null,null,null,null,null,null,null,null,null,null,null,10064,1840,1000]
[null,null,null,null,null,null,null,null,null,null,null,null,null,null,null,null,null,null,null,null,null,null,null,null,10066,1840,1000]
[null,null,null,null,null,null,null,null,null,null,null,null,null,null,null,null,null,null,null,null,null,null,null,null,10072,1091,1000]
[null,null,null,null,null,null,null,null,null,null,null,null,null,null,null,null,null,null,null,null,null,null,null,null,10076,1449,1000]
[null,null,null,null,null,null,null,null,null,null,null,null,null,null,null,null,null,null,null,null,null,null,null,null,10077,1656,1000]
[null,null,null,null,null,null,null,null,null,null,null,null,null,null,null,null,null,null,null,null,null,null,null,null,10080,960,1000]
[null,null,null,null,null,null,null,null,null,null,null,null,null,null,null,null,null,null,null,null,null,null,null,null,10081,960,1000]
[null,null,null,null,null,null,null,null,null,null,null,null,null,null,null,null,null,null,null,null,null,null,null,null,10082,2255,1000]
[null,null,null,null,null,null,null,null,null,null,null,null,null,null,null,null,null,null,null,null,null,null,null,null,10088,1620,1000]
[null,null,null,null,null,null,null,null,null,null,null,null,null,null,null,null,null,null,null,null,null,null,null,null,10090,899,1000]
[null,null,null,null,null,null,null,null,null,null,null,null,null,null,null,null,null,null,null,null,null,null,null,null,10093,299.36,1000]
[null,null,null,null,null,null,null,null,null,null,null,null,null,null,null,null,null,null,null,null,null,null,null,null,10094,985,1000]
[null,null,null,null,null,null,null,null,null,null,null,null,null,null,null,null,null,null,null,null,null,null,null,null,10098,1199,1000]
[null,null,null,null,null,null,null,null,null,null,null,null,null,null,null,null,null,null,null,null,null,null,null,null,10104,239,1000]
[null,null,null,null,null,null,null,null,null,null,null,null,null,null,null,null,null,null,null,null,null,null,null,null,10117,254.9,1000]
[null,null,null,null,null,null,null,null,null,null,null,null,null,null,null,null,null,null,null,null,null,null,null,null,"10120 (кв. 12 с круч. - гл., 0,9 м)",73.98,1000]
[null,null,null,null,null,null,null,null,null,null,null,null,null,null,null,null,null,null,null,null,null,null,null,null,"10120-56 (кв. 12 с круч., 0,9 м)",83.98,1000]
[null,null,null,null,null,null,null,null,null,null,null,null,null,null,null,null,null,null,null,null,null,null,null,null,"10121 (кв. 12 с круч. - гл., 0,9 м)",74.86,1000]
[null,null,null,null,null,null,null,null,null,null,null,null,null,null,null,null,null,null,null,null,null,null,null,null,"10121-56 (кв. 12 с круч., 0,9 м)",85.45,1000]
[null,null,null,null,null,null,null,null,null,null,null,null,null,null,null,null,null,null,null,null,null,null,null,null,10122,297.69,1000]
[null,null,null,null,null,null,null,null,null,null,null,null,null,null,null,null,null,null,null,null,null,null,null,null,"10123 теперь см. 10225",null,1000]
[null,null,null,null,null,null,null,null,null,null,null,null,null,null,null,null,null,null,null,null,null,null,null,null,10124,460,1000]
[null,null,null,null,null,null,null,null,null,null,null,null,null,null,null,null,null,null,null,null,null,null,null,null,10125,198.5,1000]
[null,null,null,null,null,null,null,null,null,null,null,null,null,null,null,null,null,null,null,null,null,null,null,null,"10127 теперь см. 10229",157.80000000000001,1000]
[null,null,null,null,null,null,null,null,null,null,null,null,null,null,null,null,null,null,null,null,null,null,null,null,10129,181,1000]
[null,null,null,null,null,null,null,null,null,null,null,null,null,null,null,null,null,null,null,null,null,null,null,null,10130,563.58000000000004,1000]
[null,null,null,null,null,null,null,null,null,null,null,null,null,null,null,null,null,null,null,null,null,null,null,null,"10140 (кв. 14 с круч. - гл., 1,0 м)",104.69,1000]
[null,null,null,null,null,null,null,null,null,null,null,null,null,null,null,null,null,null,null,null,null,null,null,null,"10140-56 (10140 из кв. 14х14-56)",116.83,1000]
[null,null,null,null,null,null,null,null,null,null,null,null,null,null,null,null,null,null,null,null,null,null,null,null,"10141 (кв. 14 с круч. - гл., 1,0 м)",106.48,1000]
[null,null,null,null,null,null,null,null,null,null,null,null,null,null,null,null,null,null,null,null,null,null,null,null,"10141-56 (10141 из кв. 14х14-56)",118.64,1000]
[null,null,null,null,null,null,null,null,null,null,null,null,null,null,null,null,null,null,null,null,null,null,null,null,10144,1065,1000]
[null,null,null,null,null,null,null,null,null,null,null,null,null,null,null,null,null,null,null,null,null,null,null,null,"10147 теперь см. 10249",219.73,1000]
[null,null,null,null,null,null,null,null,null,null,null,null,null,null,null,null,null,null,null,null,null,null,null,null,10149,226,1000]
[null,null,null,null,null,null,null,null,null,null,null,null,null,null,null,null,null,null,null,null,null,null,null,null,10165,199.36,1000]
[null,null,null,null,null,null,null,null,null,null,null,null,null,null,null,null,null,null,null,null,null,null,null,null,10185,379,1000]
[null,null,null,null,null,null,null,null,null,null,null,null,null,null,null,null,null,null,null,null,null,null,null,null,10187,439,1000]
[null,null,null,null,null,null,null,null,null,null,null,null,null,null,null,null,null,null,null,null,null,null,null,null,"10190 (1 корзинка)",224,1000]
[null,null,null,null,null,null,null,null,null,null,null,null,null,null,null,null,null,null,null,null,null,null,null,null,"10191 (1 корзинка)",221,1000]
[null,null,null,null,null,null,null,null,null,null,null,null,null,null,null,null,null,null,null,null,null,null,null,null,10204,295,1000]
[null,null,null,null,null,null,null,null,null,null,null,null,null,null,null,null,null,null,null,null,null,null,null,null,10217,309,1000]
[null,null,null,null,null,null,null,null,null,null,null,null,null,null,null,null,null,null,null,null,null,null,null,null,"10220 (кв.12 с 2 круч.- гл., 0,9 м)",77.849999999999994,1000]
[null,null,null,null,null,null,null,null,null,null,null,null,null,null,null,null,null,null,null,null,null,null,null,null,"10220-56 (кв. 12 с 2 круч., 0,9 м)",87.85,1000]
[null,null,null,null,null,null,null,null,null,null,null,null,null,null,null,null,null,null,null,null,null,null,null,null,10222,354.29,1000]
[null,null,null,null,null,null,null,null,null,null,null,null,null,null,null,null,null,null,null,null,null,null,null,null,10224,647,1000]
[null,null,null,null,null,null,null,null,null,null,null,null,null,null,null,null,null,null,null,null,null,null,null,null,10225,198.5,1000]
[null,null,null,null,null,null,null,null,null,null,null,null,null,null,null,null,null,null,null,null,null,null,null,null,10229,214,1000]
[null,null,null,null,null,null,null,null,null,null,null,null,null,null,null,null,null,null,null,null,null,null,null,null,10230,979,1000]
[null,null,null,null,null,null,null,null,null,null,null,null,null,null,null,null,null,null,null,null,null,null,null,null,"10240 (кв.14 с 2 круч.- гл., 1,0 м)",109.97,1000]
[null,null,null,null,null,null,null,null,null,null,null,null,null,null,null,null,null,null,null,null,null,null,null,null,"10240-56 (10240 из кв. 14х14-56)",123.79,1000]
[null,null,null,null,null,null,null,null,null,null,null,null,null,null,null,null,null,null,null,null,null,null,null,null,10244,1474,1000]
[null,null,null,null,null,null,null,null,null,null,null,null,null,null,null,null,null,null,null,null,null,null,null,null,10249,262,1000]
[null,null,null,null,null,null,null,null,null,null,null,null,null,null,null,null,null,null,null,null,null,null,null,null,10265,263.94,1000]
[null,null,null,null,null,null,null,null,null,null,null,null,null,null,null,null,null,null,null,null,null,null,null,null,"10290 (2 корзинки)",268,1000]
[null,null,null,null,null,null,null,null,null,null,null,null,null,null,null,null,null,null,null,null,null,null,null,null,"10291 (2 корзинки)",268,1000]
[null,null,null,null,null,null,null,null,null,null,null,null,null,null,null,null,null,null,null,null,null,null,null,null,10306,259,1000]
[null,null,null,null,null,null,null,null,null,null,null,null,null,null,null,null,null,null,null,null,null,null,null,null,10307,299,1000]
[null,null,null,null,null,null,null,null,null,null,null,null,null,null,null,null,null,null,null,null,null,null,null,null,10308,256,1000]
[null,null,null,null,null,null,null,null,null,null,null,null,null,null,null,null,null,null,null,null,null,null,null,null,10312,359,1000]
[null,null,null,null,null,null,null,null,null,null,null,null,null,null,null,null,null,null,null,null,null,null,null,null,10313,359,1000]
[null,null,null,null,null,null,null,null,null,null,null,null,null,null,null,null,null,null,null,null,null,null,null,null,"10403 теперь см. 10425",null,1000]
[null,null,null,null,null,null,null,null,null,null,null,null,null,null,null,null,null,null,null,null,null,null,null,null,"10405 теперь см. 10415",null,1000]
[null,null,null,null,null,null,null,null,null,null,null,null,null,null,null,null,null,null,null,null,null,null,null,null,10415,217,1000]
[null,null,null,null,null,null,null,null,null,null,null,null,null,null,null,null,null,null,null,null,null,null,null,null,10423,539,1000]
[null,null,null,null,null,null,null,null,null,null,null,null,null,null,null,null,null,null,null,null,null,null,null,null,10425,229,1000]
[null,null,null,null,null,null,null,null,null,null,null,null,null,null,null,null,null,null,null,null,null,null,null,null,10501,229,1000]
[null,null,null,null,null,null,null,null,null,null,null,null,null,null,null,null,null,null,null,null,null,null,null,null,10506,239,1000]
[null,null,null,null,null,null,null,null,null,null,null,null,null,null,null,null,null,null,null,null,null,null,null,null,10507,269,1000]
[null,null,null,null,null,null,null,null,null,null,null,null,null,null,null,null,null,null,null,null,null,null,null,null,10508,239,1000]
[null,null,null,null,null,null,null,null,null,null,null,null,null,null,null,null,null,null,null,null,null,null,null,null,10617,698,1000]
[null,null,null,null,null,null,null,null,null,null,null,null,null,null,null,null,null,null,null,null,null,null,null,null,"12190 теперь см. 10190",null,1000]
[null,null,null,null,null,null,null,null,null,null,null,null,null,null,null,null,null,null,null,null,null,null,null,null,"12290 теперь см. 10290",null,1000]
[null,null,null,null,null,null,null,null,null,null,null,null,null,null,null,null,null,null,null,null,null,null,null,null,"12603 теперь см. 10265",null,1000]
[null,null,null,null,null,null,null,null,null,null,null,null,null,null,null,null,null,null,null,null,null,null,null,null,"12605 теперь см. 10165",null,1000]
[null,null,null,null,null,null,null,null,null,null,null,null,null,null,null,null,null,null,null,null,null,null,null,null,"14103 теперь см. 10093",null,1000]
[null,null,null,null,null,null,null,null,null,null,null,null,null,null,null,null,null,null,null,null,null,null,null,null,312103,null,1000]
[null,null,null,null,null,null,null,null,null,null,null,null,null,null,null,null,null,null,null,null,null,null,null,null,312109,null,1000]
[null,null,null,null,null,null,null,null,null,null,null,null,null,null,null,null,null,null,null,null,null,null,null,null,312111,null,1000]
[null,null,null,null,null,null,null,null,null,null,null,null,null,null,null,null,null,null,null,null,null,null,null,null,312133,null,1000]
[null,null,null,null,null,null,null,null,null,null,null,null,null,null,null,null,null,null,null,null,null,null,null,null,312135,null,1000]
[null,null,null,null,null,null,null,null,null,null,null,null,null,null,null,null,null,null,null,null,null,null,null,null,"312142 теперь см. 10122",null,1000]
[null,null,null,null,null,null,null,null,null,null,null,null,null,null,null,null,null,null,null,null,null,null,null,null,312203,null,1000]
[null,null,null,null,null,null,null,null,null,null,null,null,null,null,null,null,null,null,null,null,null,null,null,null,312209,null,1000]
[null,null,null,null,null,null,null,null,null,null,null,null,null,null,null,null,null,null,null,null,null,null,null,null,312211,null,1000]
[null,null,null,null,null,null,null,null,null,null,null,null,null,null,null,null,null,null,null,null,null,null,null,null,312233,null,1000]
[null,null,null,null,null,null,null,null,null,null,null,null,null,null,null,null,null,null,null,null,null,null,null,null,312235,null,1000]
[null,null,null,null,null,null,null,null,null,null,null,null,null,null,null,null,null,null,null,null,null,null,null,null,"312242 теперь см. 10222",null,1000]
[null,null,null,null,null,null,null,null,null,null,null,null,null,null,null,null,null,null,null,null,null,null,null,null,"Стойки объёмные (0,90-1,0 м)",null,1000]
[null,null,null,null,null,null,null,null,null,null,null,null,null,null,null,null,null,null,null,null,null,null,null,null,"10700 (Н=0,9 м, 12 гл.кв.)",99.49,1000]
[null,null,null,null,null,null,null,null,null,null,null,null,null,null,null,null,null,null,null,null,null,null,null,null,"10700-55 (Н=0,9 м, 12х12-55)",107.69,1000]
[null,null,null,null,null,null,null,null,null,null,null,null,null,null,null,null,null,null,null,null,null,null,null,null,"10811 (Н=0,9 м, 12 гл.кв.)",106.79,1000]
[null,null,null,null,null,null,null,null,null,null,null,null,null,null,null,null,null,null,null,null,null,null,null,null,"10811-55 (Н=0,9 м, 12х12-55)",113.47,1000]
[null,null,null,null,null,null,null,null,null,null,null,null,null,null,null,null,null,null,null,null,null,null,null,null,"10901-8 (Н=1,0 м)",238,1000]
[null,null,null,null,null,null,null,null,null,null,null,null,null,null,null,null,null,null,null,null,null,null,null,null,"10901-15 (Н=1,0 м)",227,1000]
[null,null,null,null,null,null,null,null,null,null,null,null,null,null,null,null,null,null,null,null,null,null,null,null,"10901-16 (Н=1,0 м)",257,1000]
[null,null,null,null,null,null,null,null,null,null,null,null,null,null,null,null,null,null,null,null,null,null,null,null,"10901-22 (Н=1,0 м)",257,1000]
[null,null,null,null,null,null,null,null,null,null,null,null,null,null,null,null,null,null,null,null,null,null,null,null,"10911 (Н=1,0 м)",219,1000]
[null,null,null,null,null,null,null,null,null,null,null,null,null,null,null,null,null,null,null,null,null,null,null,null,"10915 (Н=1,0 м)",214,1000]
[null,null,null,null,null,null,null,null,null,null,null,null,null,null,null,null,null,null,null,null,null,null,null,null,"10920 (эл. для цветников)",197,1000]
[null,null,null,null,null,null,null,null,null,null,null,null,null,null,null,null,null,null,null,null,null,null,null,null,"12700 теперь см. 10700",null,1000]
[null,null,null,null,null,null,null,null,null,null,null,null,null,null,null,null,null,null,null,null,null,null,null,null,"12700-55 теперь см. 10700-55",null,1000]
[null,null,null,null,null,null,null,null,null,null,null,null,null,null,null,null,null,null,null,null,null,null,null,null,"12811 теперь см. 10811",null,1000]
[null,null,null,null,null,null,null,null,null,null,null,null,null,null,null,null,null,null,null,null,null,null,null,null,"12811-55 теперь см. 10811-55",null,1000]
[null,null,null,null,null,null,null,null,null,null,null,null,null,null,null,null,null,null,null,null,null,null,null,null,"12901-8 теперь см. 10901-8",null,1000]
[null,null,null,null,null,null,null,null,null,null,null,null,null,null,null,null,null,null,null,null,null,null,null,null,"12901-15 теперь см. 10901-15",null,1000]
[null,null,null,null,null,null,null,null,null,null,null,null,null,null,null,null,null,null,null,null,null,null,null,null,"12901-16 теперь см. 10901-16",null,1000]
[null,null,null,null,null,null,null,null,null,null,null,null,null,null,null,null,null,null,null,null,null,null,null,null,"12901-22 теперь см. 10901-22",null,1000]
[null,null,null,null,null,null,null,null,null,null,null,null,null,null,null,null,null,null,null,null,null,null,null,null,"12911 теперь см. 10911",null,1000]
[null,null,null,null,null,null,null,null,null,null,null,null,null,null,null,null,null,null,null,null,null,null,null,null,"12915 теперь см. 10915",null,1000]
[null,null,null,null,null,null,null,null,null,null,null,null,null,null,null,null,null,null,null,null,null,null,null,null,"Столб начальный ручной ковки (1,00-1,20 м)",null,1000]
[null,null,null,null,null,null,null,null,null,null,null,null,null,null,null,null,null,null,null,null,null,null,null,null,"Дракон-1",14980,1000]
[null,null,null,null,null,null,null,null,null,null,null,null,null,null,null,null,null,null,null,null,null,null,null,null,"200120 (кв. 20 с круч.)",297.89,1000]
[null,null,null,null,null,null,null,null,null,null,null,null,null,null,null,null,null,null,null,null,null,null,null,null,"200120-56 (кв. 20х20-56 с круч.)",329.89,1000]
[null,null,null,null,null,null,null,null,null,null,null,null,null,null,null,null,null,null,null,null,null,null,null,null,"250120 (кв. 25 с круч.)",469.22,1000]
[null,null,null,null,null,null,null,null,null,null,null,null,null,null,null,null,null,null,null,null,null,null,null,null,"250120-56 (кв. 25х25-56 с круч.)",496.85,1000]
[null,null,null,null,null,null,null,null,null,null,null,null,null,null,null,null,null,null,null,null,null,null,null,null,"300120 (кв. 30 с круч.)",629.46,1000]
[null,null,null,null,null,null,null,null,null,null,null,null,null,null,null,null,null,null,null,null,null,null,null,null,"300120-56 (кв. 30х30-56 с круч.)",688.46,1000]
[null,null,null,null,null,null,null,null,null,null,null,null,null,null,null,null,null,null,null,null,null,null,null,null,200330,789,1000]
[null,null,null,null,null,null,null,null,null,null,null,null,null,null,null,null,null,null,null,null,null,null,null,null,200360,688,1000]
[null,null,null,null,null,null,null,null,null,null,null,null,null,null,null,null,null,null,null,null,null,null,null,null,"201110 теперь см. 201190",null,1000]
[null,null,null,null,null,null,null,null,null,null,null,null,null,null,null,null,null,null,null,null,null,null,null,null,"201190 (кв. 20 с корз.)",692,1000]
[null,null,null,null,null,null,null,null,null,null,null,null,null,null,null,null,null,null,null,null,null,null,null,null,"201191 (кв. 20 с корз.)",789,1000]
[null,null,null,null,null,null,null,null,null,null,null,null,null,null,null,null,null,null,null,null,null,null,null,null,"301110 теперь см. 301190",null,1000]
[null,null,null,null,null,null,null,null,null,null,null,null,null,null,null,null,null,null,null,null,null,null,null,null,"301190 (кв. 30 с корз.)",1389,1000]
[null,null,null,null,null,null,null,null,null,null,null,null,null,null,null,null,null,null,null,null,null,null,null,null,"301191 (кв. 30 с корз.)",1475,1000]
[null,null,null,null,null,null,null,null,null,null,null,null,null,null,null,null,null,null,null,null,null,null,null,null,"305120 (с латун. вставкой)",19924,1000]
[null,null,null,null,null,null,null,null,null,null,null,null,null,null,null,null,null,null,null,null,null,null,null,null,"305450 (с латун. вставкой)",16498.5,1000]
[null,null,null,null,null,null,null,null,null,null,null,null,null,null,null,null,null,null,null,null,null,null,null,null,"324100/2 (кв. 25 мм)",1449,1000]
[null,null,null,null,null,null,null,null,null,null,null,null,null,null,null,null,null,null,null,null,null,null,null,null,"324103 (кв. 25 мм)",null,1000]
[null,null,null,null,null,null,null,null,null,null,null,null,null,null,null,null,null,null,null,null,null,null,null,null,"324103-2 (кв. 25 мм)",null,1000]
[null,null,null,null,null,null,null,null,null,null,null,null,null,null,null,null,null,null,null,null,null,null,null,null,"324121 (кв. 25 мм)",1398,1000]
[null,null,null,null,null,null,null,null,null,null,null,null,null,null,null,null,null,null,null,null,null,null,null,null,"324125 (кв. 25 мм)",979,1000]
[null,null,null,null,null,null,null,null,null,null,null,null,null,null,null,null,null,null,null,null,null,null,null,null,"324129 (кв. 25 мм)",927,1000]
[null,null,null,null,null,null,null,null,null,null,null,null,null,null,null,null,null,null,null,null,null,null,null,null,"324130 (кв. 25 мм)",1395,1000]
[null,null,null,null,null,null,null,null,null,null,null,null,null,null,null,null,null,null,null,null,null,null,null,null,"324140 (пол. 25х12)",3349,1000]
[null,null,null,null,null,null,null,null,null,null,null,null,null,null,null,null,null,null,null,null,null,null,null,null,"324154 (кв. 25 мм)",1849,1000]
[null,null,null,null,null,null,null,null,null,null,null,null,null,null,null,null,null,null,null,null,null,null,null,null,"324156 (кв. 25 мм)",1699,1000]
[null,null,null,null,null,null,null,null,null,null,null,null,null,null,null,null,null,null,null,null,null,null,null,null,"324430 (кр. 25 мм)",1498,1000]
[null,null,null,null,null,null,null,null,null,null,null,null,null,null,null,null,null,null,null,null,null,null,null,null,"330125 (кв. 30 мм)",1960,1000]
[null,null,null,null,null,null,null,null,null,null,null,null,null,null,null,null,null,null,null,null,null,null,null,null,"330128 (кв. 30 мм)",1620,1000]
[null,null,null,null,null,null,null,null,null,null,null,null,null,null,null,null,null,null,null,null,null,null,null,null,"330405 (кр. 30 мм)",1049,1000]
[null,null,null,null,null,null,null,null,null,null,null,null,null,null,null,null,null,null,null,null,null,null,null,null,"330425 (кр. 30 мм)",1790,1000]
[null,null,null,null,null,null,null,null,null,null,null,null,null,null,null,null,null,null,null,null,null,null,null,null,"405302 (D=40 мм с латун.)",2984.54,1000]
[null,null,null,null,null,null,null,null,null,null,null,null,null,null,null,null,null,null,null,null,null,null,null,null,"405312 (D=40 мм с након.)",5577.99,1000]
[null,null,null,null,null,null,null,null,null,null,null,null,null,null,null,null,null,null,null,null,null,null,null,null,"405502 (D=40 мм с након.)",1998.95,1000]
[null,null,null,null,null,null,null,null,null,null,null,null,null,null,null,null,null,null,null,null,null,null,null,null,"501202 (столб 50х50 мм)",3795.5,1000]
[null,null,null,null,null,null,null,null,null,null,null,null,null,null,null,null,null,null,null,null,null,null,null,null,"Стойки кручёные (0,80-0,90 м)",null,1000]
[null,null,null,null,null,null,null,null,null,null,null,null,null,null,null,null,null,null,null,null,null,null,null,null,"90172 теперь см. 10220",null,1000]
[null,null,null,null,null,null,null,null,null,null,null,null,null,null,null,null,null,null,null,null,null,null,null,null,"90321 теперь см. 10120",null,1000]
[null,null,null,null,null,null,null,null,null,null,null,null,null,null,null,null,null,null,null,null,null,null,null,null,"Пластиковый поручень (на полосу 40х8)",null,1000]
[null,null,null,null,null,null,null,null,null,null,null,null,null,null,null,null,null,null,null,null,null,null,null,null,"\"Золото\" (плоский)",null,1000]
[null,null,null,null,null,null,null,null,null,null,null,null,null,null,null,null,null,null,null,null,null,null,null,null,"\"Орех\" (с текстурой, плоский)",null,1000]
[null,null,null,null,null,null,null,null,null,null,null,null,null,null,null,null,null,null,null,null,null,null,null,null,"\"Чёрный\" (плоский)",null,1000]
[null,null,null,null,null,null,null,null,null,null,null,null,null,null,null,null,null,null,null,null,null,null,null,null,"\"Золото\" (круглый)",null,1000]
[null,null,null,null,null,null,null,null,null,null,null,null,null,null,null,null,null,null,null,null,null,null,null,null,"\"Серебро\" (круглый)",null,1000]
[null,null,null,null,null,null,null,null,null,null,null,null,null,null,null,null,null,null,null,null,null,null,null,null,"\"Чёрный\" (круглый)",null,1000]
[null,null,null,null,null,null,null,null,null,null,null,null,null,null,null,null,null,null,null,null,null,null,null,null,"Профиль декоративный (цена за 1 п. метр)",null,1000]
[null,null,null,null,null,null,null,null,null,null,null,null,null,null,null,null,null,null,null,null,null,null,null,null,"20x20x2",74.8,1000]
[null,null,null,null,null,null,null,null,null,null,null,null,null,null,null,null,null,null,null,null,null,null,null,null,"30х30х2",114.8,1000]
[null,null,null,null,null,null,null,null,null,null,null,null,null,null,null,null,null,null,null,null,null,null,null,null,"40x40x2",148.5,1000]
[null,null,null,null,null,null,null,null,null,null,null,null,null,null,null,null,null,null,null,null,null,null,null,null,"60x60x2",214.8,1000]
[null,null,null,null,null,null,null,null,null,null,null,null,null,null,null,null,null,null,null,null,null,null,null,null,"Профиль декоративный (цена за 1 п. метр)",null,1000]
[null,null,null,null,null,null,null,null,null,null,null,null,null,null,null,null,null,null,null,null,null,null,null,null,"40x20x2",114.8,1000]
[null,null,null,null,null,null,null,null,null,null,null,null,null,null,null,null,null,null,null,null,null,null,null,null,"40x25x2",120.6,1000]
[null,null,null,null,null,null,null,null,null,null,null,null,null,null,null,null,null,null,null,null,null,null,null,null,"60x40x2",166,1000]
[null,null,null,null,null,null,null,null,null,null,null,null,null,null,null,null,null,null,null,null,null,null,null,null,"Труба кованая (цена за 1 п. метр)",null,1000]
[null,null,null,null,null,null,null,null,null,null,null,null,null,null,null,null,null,null,null,null,null,null,null,null,"ТК 3215 (труба D 32 мм.)",208.94,1000]
[null,null,null,null,null,null,null,null,null,null,null,null,null,null,null,null,null,null,null,null,null,null,null,null,"ТК 4315 (труба D 43 мм.)",241.7,1000]
[null,null,null,null,null,null,null,null,null,null,null,null,null,null,null,null,null,null,null,null,null,null,null,null,"ТК 5720 (труба D 57 мм.)",369.86,1000]
[null,null,null,null,null,null,null,null,null,null,null,null,null,null,null,null,null,null,null,null,null,null,null,null,"Труба витая (цена за 1 п. метр)",null,1000]
[null,null,null,null,null,null,null,null,null,null,null,null,null,null,null,null,null,null,null,null,null,null,null,null,"1615 (труба D 16 мм.)",57.8,1000]
[null,null,null,null,null,null,null,null,null,null,null,null,null,null,null,null,null,null,null,null,null,null,null,null,"2515 (труба D 25 мм.)",85.9,1000]
[null,null,null,null,null,null,null,null,null,null,null,null,null,null,null,null,null,null,null,null,null,null,null,null,"3215 (труба D 32 мм.)",106.6,1000]
[null,null,null,null,null,null,null,null,null,null,null,null,null,null,null,null,null,null,null,null,null,null,null,null,"3815 (труба D 38 мм.)",123.7,1000]
[null,null,null,null,null,null,null,null,null,null,null,null,null,null,null,null,null,null,null,null,null,null,null,null,"4215 (труба D 42 мм.)",132,1000]
[null,null,null,null,null,null,null,null,null,null,null,null,null,null,null,null,null,null,null,null,null,null,null,null,"4230 (труба D 42 мм.)",null,1000]
[null,null,null,null,null,null,null,null,null,null,null,null,null,null,null,null,null,null,null,null,null,null,null,null,"5115 (труба D 51 мм.)",160,1000]
[null,null,null,null,null,null,null,null,null,null,null,null,null,null,null,null,null,null,null,null,null,null,null,null,"6030 (труба D 60 мм.)",410,1000]
[null,null,null,null,null,null,null,null,null,null,null,null,null,null,null,null,null,null,null,null,null,null,null,null,"6035 (труба D 60 мм.)",430,1000]
[null,null,null,null,null,null,null,null,null,null,null,null,null,null,null,null,null,null,null,null,null,null,null,null,"7630 (труба D 76 мм.)",470,1000]
[null,null,null,null,null,null,null,null,null,null,null,null,null,null,null,null,null,null,null,null,null,null,null,null,"7635 (труба D 76 мм.)",490,1000]
[null,null,null,null,null,null,null,null,null,null,null,null,null,null,null,null,null,null,null,null,null,null,null,null,"8930 (труба D 89 мм.)",550,1000]
[null,null,null,null,null,null,null,null,null,null,null,null,null,null,null,null,null,null,null,null,null,null,null,null,"10230 (труба D 102 мм.)",650,1000]
[null,null,null,null,null,null,null,null,null,null,null,null,null,null,null,null,null,null,null,null,null,null,null,null,"Лоза виноградная (цена за 1 п.метр)",null,1000]
[null,null,null,null,null,null,null,null,null,null,null,null,null,null,null,null,null,null,null,null,null,null,null,null,"0106 (D 6 мм)",46.22,1000]
[null,null,null,null,null,null,null,null,null,null,null,null,null,null,null,null,null,null,null,null,null,null,null,null,"0208 (D 8 мм)",78.489999999999995,1000]
[null,null,null,null,null,null,null,null,null,null,null,null,null,null,null,null,null,null,null,null,null,null,null,null,"0210 (D 10 мм)",126.92,1000]
[null,null,null,null,null,null,null,null,null,null,null,null,null,null,null,null,null,null,null,null,null,null,null,null,"0212 (D 12 мм)",188.71,1000]
[null,null,null,null,null,null,null,null,null,null,null,null,null,null,null,null,null,null,null,null,null,null,null,null,"0214 (D 14 мм)",240.48,1000]
[null,null,null,null,null,null,null,null,null,null,null,null,null,null,null,null,null,null,null,null,null,null,null,null,"0216 (D 16 мм)",327.32,1000]
[null,null,null,null,null,null,null,null,null,null,null,null,null,null,null,null,null,null,null,null,null,null,null,null,"0218 (D 18 мм)",390.78,1000]
[null,null,null,null,null,null,null,null,null,null,null,null,null,null,null,null,null,null,null,null,null,null,null,null,"0220 (D 20 мм)",null,1000]
[null,null,null,null,null,null,null,null,null,null,null,null,null,null,null,null,null,null,null,null,null,null,null,null,"0222 (D 22 мм)",564.46,1000]
[null,null,null,null,null,null,null,null,null,null,null,null,null,null,null,null,null,null,null,null,null,null,null,null,"0224 (D 24 мм)",null,1000]
[null,null,null,null,null,null,null,null,null,null,null,null,null,null,null,null,null,null,null,null,null,null,null,null,"0306 кованый кр. (D 6 мм)",null,1000]
[null,null,null,null,null,null,null,null,null,null,null,null,null,null,null,null,null,null,null,null,null,null,null,null,"0906 (D 6 мм)",29.77,1000]
[null,null,null,null,null,null,null,null,null,null,null,null,null,null,null,null,null,null,null,null,null,null,null,null,"0908 (D 8 мм)",46.59,1000]
[null,null,null,null,null,null,null,null,null,null,null,null,null,null,null,null,null,null,null,null,null,null,null,null,"0910 (D 10 мм)",63.48,1000]
[null,null,null,null,null,null,null,null,null,null,null,null,null,null,null,null,null,null,null,null,null,null,null,null,"Обжимная полоса (цена за 1 п. метр)",null,1000]
[null,null,null,null,null,null,null,null,null,null,null,null,null,null,null,null,null,null,null,null,null,null,null,null,"Обжимка-2 (16х1,5)",29.76,1000]
[null,null,null,null,null,null,null,null,null,null,null,null,null,null,null,null,null,null,null,null,null,null,null,null,"Обжимка-4 (16х1,2)",45.97,1000]
[null,null,null,null,null,null,null,null,null,null,null,null,null,null,null,null,null,null,null,null,null,null,null,null,"Обжимка-5 (14х4)",74.8,1000]
[null,null,null,null,null,null,null,null,null,null,null,null,null,null,null,null,null,null,null,null,null,null,null,null,"Обжимка-6 (14х4)",69,1000]
[null,null,null,null,null,null,null,null,null,null,null,null,null,null,null,null,null,null,null,null,null,null,null,null,"Обжимка-7 (18х5)",125,1000]
[null,null,null,null,null,null,null,null,null,null,null,null,null,null,null,null,null,null,null,null,null,null,null,null,"Обжимка-8 (18х5)",115,1000]
[null,null,null,null,null,null,null,null,null,null,null,null,null,null,null,null,null,null,null,null,null,null,null,null,"Обжимка-11 (14х4)",74.8,1000]
[null,null,null,null,null,null,null,null,null,null,null,null,null,null,null,null,null,null,null,null,null,null,null,null,"Обжимка-13 (16х5)",96,1000]
[null,null,null,null,null,null,null,null,null,null,null,null,null,null,null,null,null,null,null,null,null,null,null,null,"Полоса декоративная (цена за 1 п. метр)",null,1000]
[null,null,null,null,null,null,null,null,null,null,null,null,null,null,null,null,null,null,null,null,null,null,null,null,"12х6 гладкая",36.4,1000]
[null,null,null,null,null,null,null,null,null,null,null,null,null,null,null,null,null,null,null,null,null,null,null,null,"12x6 - 1",53.8,1000]
[null,null,null,null,null,null,null,null,null,null,null,null,null,null,null,null,null,null,null,null,null,null,null,null,"12x6 - 29",55.8,1000]
[null,null,null,null,null,null,null,null,null,null,null,null,null,null,null,null,null,null,null,null,null,null,null,null,"12x6 - 55",53.8,1000]
[null,null,null,null,null,null,null,null,null,null,null,null,null,null,null,null,null,null,null,null,null,null,null,null,"25x4 - 1",49.8,1000]
[null,null,null,null,null,null,null,null,null,null,null,null,null,null,null,null,null,null,null,null,null,null,null,null,"25x4 - 19",49.8,1000]
[null,null,null,null,null,null,null,null,null,null,null,null,null,null,null,null,null,null,null,null,null,null,null,null,"25x4 - 21",49.8,1000]
[null,null,null,null,null,null,null,null,null,null,null,null,null,null,null,null,null,null,null,null,null,null,null,null,"25x4 - 27",49.8,1000]
[null,null,null,null,null,null,null,null,null,null,null,null,null,null,null,null,null,null,null,null,null,null,null,null,"25x4 - 42",49.8,1000]
[null,null,null,null,null,null,null,null,null,null,null,null,null,null,null,null,null,null,null,null,null,null,null,null,"25x4 - 77",49.8,1000]
[null,null,null,null,null,null,null,null,null,null,null,null,null,null,null,null,null,null,null,null,null,null,null,null,"30х6-29",99.7,1000]
[null,null,null,null,null,null,null,null,null,null,null,null,null,null,null,null,null,null,null,null,null,null,null,null,"40x4 - 22",84,1000]
[null,null,null,null,null,null,null,null,null,null,null,null,null,null,null,null,null,null,null,null,null,null,null,null,"40x4 - 40",84,1000]
[null,null,null,null,null,null,null,null,null,null,null,null,null,null,null,null,null,null,null,null,null,null,null,null,"40x4 - 77",84,1000]
[null,null,null,null,null,null,null,null,null,null,null,null,null,null,null,null,null,null,null,null,null,null,null,null,"40x6 - 1",124.8,1000]
[null,null,null,null,null,null,null,null,null,null,null,null,null,null,null,null,null,null,null,null,null,null,null,null,"40x6 - 2",124.8,1000]
[null,null,null,null,null,null,null,null,null,null,null,null,null,null,null,null,null,null,null,null,null,null,null,null,"40x6 - 3",124.8,1000]
[null,null,null,null,null,null,null,null,null,null,null,null,null,null,null,null,null,null,null,null,null,null,null,null,"40х6 - 11",124.8,1000]
[null,null,null,null,null,null,null,null,null,null,null,null,null,null,null,null,null,null,null,null,null,null,null,null,"40х6 - 19",124.8,1000]
[null,null,null,null,null,null,null,null,null,null,null,null,null,null,null,null,null,null,null,null,null,null,null,null,"40x6 - 21",124.8,1000]
[null,null,null,null,null,null,null,null,null,null,null,null,null,null,null,null,null,null,null,null,null,null,null,null,"40x6 - 22",124.8,1000]
[null,null,null,null,null,null,null,null,null,null,null,null,null,null,null,null,null,null,null,null,null,null,null,null,"40x6 - 27",124.8,1000]
[null,null,null,null,null,null,null,null,null,null,null,null,null,null,null,null,null,null,null,null,null,null,null,null,"40x6 - 29",124.8,1000]
[null,null,null,null,null,null,null,null,null,null,null,null,null,null,null,null,null,null,null,null,null,null,null,null,"40x6 - 33",124.8,1000]
[null,null,null,null,null,null,null,null,null,null,null,null,null,null,null,null,null,null,null,null,null,null,null,null,"40x6 - 40",124.8,1000]
[null,null,null,null,null,null,null,null,null,null,null,null,null,null,null,null,null,null,null,null,null,null,null,null,"40x6 - 42",124.8,1000]
[null,null,null,null,null,null,null,null,null,null,null,null,null,null,null,null,null,null,null,null,null,null,null,null,"40x6 - 68",124.8,1000]
[null,null,null,null,null,null,null,null,null,null,null,null,null,null,null,null,null,null,null,null,null,null,null,null,"40x6 - 77",124.8,1000]
[null,null,null,null,null,null,null,null,null,null,null,null,null,null,null,null,null,null,null,null,null,null,null,null,"40x6 - 82",124.8,1000]
[null,null,null,null,null,null,null,null,null,null,null,null,null,null,null,null,null,null,null,null,null,null,null,null,"50x6 - 82",154.44999999999999,1000]
[null,null,null,null,null,null,null,null,null,null,null,null,null,null,null,null,null,null,null,null,null,null,null,null,"Поручень с текстурой дерева (60х13 мм)",null,1000]
[null,null,null,null,null,null,null,null,null,null,null,null,null,null,null,null,null,null,null,null,null,null,null,null,"Поручень 60х13 мм",279.89999999999998,1000]
[null,null,null,null,null,null,null,null,null,null,null,null,null,null,null,null,null,null,null,null,null,null,null,null,"Поручень пустотелый (50х21 мм)",null,1000]
[null,null,null,null,null,null,null,null,null,null,null,null,null,null,null,null,null,null,null,null,null,null,null,null,"Поручень 50х21 мм",279,1000]
[null,null,null,null,null,null,null,null,null,null,null,null,null,null,null,null,null,null,null,null,null,null,null,null,"Полоса кованая (цена за 1 п. метр)",null,1000]
[null,null,null,null,null,null,null,null,null,null,null,null,null,null,null,null,null,null,null,null,null,null,null,null,"Полоса 31х5-8",193,1000]
[null,null,null,null,null,null,null,null,null,null,null,null,null,null,null,null,null,null,null,null,null,null,null,null,"Полоса 31х5-15",193,1000]
[null,null,null,null,null,null,null,null,null,null,null,null,null,null,null,null,null,null,null,null,null,null,null,null,"Полоса 31х5-22",193,1000]
[null,null,null,null,null,null,null,null,null,null,null,null,null,null,null,null,null,null,null,null,null,null,null,null,"Полоса 32х5-16",198,1000]
[null,null,null,null,null,null,null,null,null,null,null,null,null,null,null,null,null,null,null,null,null,null,null,null,"Полоса 32х6-13",229.9,1000]
[null,null,null,null,null,null,null,null,null,null,null,null,null,null,null,null,null,null,null,null,null,null,null,null,"Полоса 32х6-17",200.88,1000]
[null,null,null,null,null,null,null,null,null,null,null,null,null,null,null,null,null,null,null,null,null,null,null,null,"Полоса 32х9-4",198,1000]
[null,null,null,null,null,null,null,null,null,null,null,null,null,null,null,null,null,null,null,null,null,null,null,null,"Полоса 32х9-23",292.39,1000]
[null,null,null,null,null,null,null,null,null,null,null,null,null,null,null,null,null,null,null,null,null,null,null,null,"Полоса кованая (цена за 1 п. метр)",null,1000]
[null,null,null,null,null,null,null,null,null,null,null,null,null,null,null,null,null,null,null,null,null,null,null,null,"Полоса 40х11",359,1000]
[null,null,null,null,null,null,null,null,null,null,null,null,null,null,null,null,null,null,null,null,null,null,null,null,"Полоса 50х14",449.9,1000]
[null,null,null,null,null,null,null,null,null,null,null,null,null,null,null,null,null,null,null,null,null,null,null,null,"Полоса 50х14 (от 100 м.)",null,1000]
[null,null,null,null,null,null,null,null,null,null,null,null,null,null,null,null,null,null,null,null,null,null,null,null,"Полоса 50х14 (от 180 м.)",null,1000]
[null,null,null,null,null,null,null,null,null,null,null,null,null,null,null,null,null,null,null,null,null,null,null,null,null,null,1000]
[null,null,null,null,null,null,null,null,null,null,null,null,null,null,null,null,null,null,null,null,null,null,null,null,"Полоса 52х12",346,1000]
[null,null,null,null,null,null,null,null,null,null,null,null,null,null,null,null,null,null,null,null,null,null,null,null,"Квадрат кованый (цена за 1 п. метр)",null,1000]
[null,null,null,null,null,null,null,null,null,null,null,null,null,null,null,null,null,null,null,null,null,null,null,null,"4400-14 (кв.14,отв.14 мм,шаг 140)",249.5,1000]
[null,null,null,null,null,null,null,null,null,null,null,null,null,null,null,null,null,null,null,null,null,null,null,null,"4400-16 (кв.16,отв.16 мм,шаг 150)",319,1000]
[null,null,null,null,null,null,null,null,null,null,null,null,null,null,null,null,null,null,null,null,null,null,null,null,"4000-14 (кр.14,отв.14 мм,шаг 140)",219.5,1000]
[null,null,null,null,null,null,null,null,null,null,null,null,null,null,null,null,null,null,null,null,null,null,null,null,"1414-01",323,1000]
[null,null,null,null,null,null,null,null,null,null,null,null,null,null,null,null,null,null,null,null,null,null,null,null,"Квадрат декоративный (цена за 1 п. метр)",null,1000]
[null,null,null,null,null,null,null,null,null,null,null,null,null,null,null,null,null,null,null,null,null,null,null,null,"10х10 - 29",55.9,1000]
[null,null,null,null,null,null,null,null,null,null,null,null,null,null,null,null,null,null,null,null,null,null,null,null,"12х12 - 29",74.900000000000006,1000]
[null,null,null,null,null,null,null,null,null,null,null,null,null,null,null,null,null,null,null,null,null,null,null,null,"14х14 - 29",95.5,1000]
[null,null,null,null,null,null,null,null,null,null,null,null,null,null,null,null,null,null,null,null,null,null,null,null,"16х16 - 29",109.5,1000]
[null,null,null,null,null,null,null,null,null,null,null,null,null,null,null,null,null,null,null,null,null,null,null,null,"12х12 - 54",79.900000000000006,1000]
[null,null,null,null,null,null,null,null,null,null,null,null,null,null,null,null,null,null,null,null,null,null,null,null,"14х14 - 54",99.6,1000]
[null,null,null,null,null,null,null,null,null,null,null,null,null,null,null,null,null,null,null,null,null,null,null,null,"10х10 - 55",55.9,1000]
[null,null,null,null,null,null,null,null,null,null,null,null,null,null,null,null,null,null,null,null,null,null,null,null,"12х12 - 55",74.900000000000006,1000]
[null,null,null,null,null,null,null,null,null,null,null,null,null,null,null,null,null,null,null,null,null,null,null,null,"14х14 - 55",95.5,1000]
[null,null,null,null,null,null,null,null,null,null,null,null,null,null,null,null,null,null,null,null,null,null,null,null,"16х16 - 55",109.5,1000]
[null,null,null,null,null,null,null,null,null,null,null,null,null,null,null,null,null,null,null,null,null,null,null,null,"20х20 - 55",167.5,1000]
[null,null,null,null,null,null,null,null,null,null,null,null,null,null,null,null,null,null,null,null,null,null,null,null,"12х12 - 56",95.5,1000]
[null,null,null,null,null,null,null,null,null,null,null,null,null,null,null,null,null,null,null,null,null,null,null,null,"14х14 - 56",87.5,1000]
[null,null,null,null,null,null,null,null,null,null,null,null,null,null,null,null,null,null,null,null,null,null,null,null,"10х10 - 58",55.9,1000]
[null,null,null,null,null,null,null,null,null,null,null,null,null,null,null,null,null,null,null,null,null,null,null,null,"12х12 - 58",79.900000000000006,1000]
[null,null,null,null,null,null,null,null,null,null,null,null,null,null,null,null,null,null,null,null,null,null,null,null,"14х14 - 58",95.5,1000]
[null,null,null,null,null,null,null,null,null,null,null,null,null,null,null,null,null,null,null,null,null,null,null,null,"10х10 - 294",55.9,1000]
[null,null,null,null,null,null,null,null,null,null,null,null,null,null,null,null,null,null,null,null,null,null,null,null,"12х12 - 294",79.900000000000006,1000]
[null,null,null,null,null,null,null,null,null,null,null,null,null,null,null,null,null,null,null,null,null,null,null,null,"14х14 - 294",95.5,1000]
[null,null,null,null,null,null,null,null,null,null,null,null,null,null,null,null,null,null,null,null,null,null,null,null,"16х16 - 294",109.5,1000]
[null,null,null,null,null,null,null,null,null,null,null,null,null,null,null,null,null,null,null,null,null,null,null,null,"Бамбук (цена за 1 п. метр)",null,1000]
[null,null,null,null,null,null,null,null,null,null,null,null,null,null,null,null,null,null,null,null,null,null,null,null,"Бамбук 16 (D 16 мм)",112.55,1000]
[null,null,null,null,null,null,null,null,null,null,null,null,null,null,null,null,null,null,null,null,null,null,null,null,"\"Монастырская вязь\" (цена за 1 п. метр)",null,1000]
[null,null,null,null,null,null,null,null,null,null,null,null,null,null,null,null,null,null,null,null,null,null,null,null,"12х6 гладкая (мон.вязь)",89.54,1000]
[null,null,null,null,null,null,null,null,null,null,null,null,null,null,null,null,null,null,null,null,null,null,null,null,"12х6-55 (мон.вязь)",106.47,1000]
[null,null,null,null,null,null,null,null,null,null,null,null,null,null,null,null,null,null,null,null,null,null,null,null,"12х12 гладкий (мон.вязь)",109.85,1000]
[null,null,null,null,null,null,null,null,null,null,null,null,null,null,null,null,null,null,null,null,null,null,null,null,"12х12-55 (мон.вязь)",128.65,1000]
[null,null,null,null,null,null,null,null,null,null,null,null,null,null,null,null,null,null,null,null,null,null,null,null,"Элементы орнамента (6х12)",null,1000]
[null,null,null,null,null,null,null,null,null,null,null,null,null,null,null,null,null,null,null,null,null,null,null,null,"9672 (12х6 гл.)",74,1000]
[null,null,null,null,null,null,null,null,null,null,null,null,null,null,null,null,null,null,null,null,null,null,null,null,9953,74,1000]
[null,null,null,null,null,null,null,null,null,null,null,null,null,null,null,null,null,null,null,null,null,null,null,null,9956,85,1000]
[null,null,null,null,null,null,null,null,null,null,null,null,null,null,null,null,null,null,null,null,null,null,null,null,19050,36.979999999999997,1000]
[null,null,null,null,null,null,null,null,null,null,null,null,null,null,null,null,null,null,null,null,null,null,null,null,"19050-12 кв.",44.74,1000]
[null,null,null,null,null,null,null,null,null,null,null,null,null,null,null,null,null,null,null,null,null,null,null,null,"19050-12 кв. (гладкий)",39.979999999999997,1000]
[null,null,null,null,null,null,null,null,null,null,null,null,null,null,null,null,null,null,null,null,null,null,null,null,19052,31.75,1000]
[null,null,null,null,null,null,null,null,null,null,null,null,null,null,null,null,null,null,null,null,null,null,null,null,19066,70.53,1000]
[null,null,null,null,null,null,null,null,null,null,null,null,null,null,null,null,null,null,null,null,null,null,null,null,"19066-12 кв.",94.83,1000]
[null,null,null,null,null,null,null,null,null,null,null,null,null,null,null,null,null,null,null,null,null,null,null,null,19067,80.05,1000]
[null,null,null,null,null,null,null,null,null,null,null,null,null,null,null,null,null,null,null,null,null,null,null,null,19070,111.57,1000]
[null,null,null,null,null,null,null,null,null,null,null,null,null,null,null,null,null,null,null,null,null,null,null,null,19071,56.42,1000]
[null,null,null,null,null,null,null,null,null,null,null,null,null,null,null,null,null,null,null,null,null,null,null,null,19080,76.83,1000]
[null,null,null,null,null,null,null,null,null,null,null,null,null,null,null,null,null,null,null,null,null,null,null,null,19081,46.04,1000]
[null,null,null,null,null,null,null,null,null,null,null,null,null,null,null,null,null,null,null,null,null,null,null,null,19169,52.99,1000]
[null,null,null,null,null,null,null,null,null,null,null,null,null,null,null,null,null,null,null,null,null,null,null,null,19170,50.12,1000]
[null,null,null,null,null,null,null,null,null,null,null,null,null,null,null,null,null,null,null,null,null,null,null,null,19171,null,1000]
[null,null,null,null,null,null,null,null,null,null,null,null,null,null,null,null,null,null,null,null,null,null,null,null,19172,54.26,1000]
[null,null,null,null,null,null,null,null,null,null,null,null,null,null,null,null,null,null,null,null,null,null,null,null,19173,68.13,1000]
[null,null,null,null,null,null,null,null,null,null,null,null,null,null,null,null,null,null,null,null,null,null,null,null,19175,51.3,1000]
[null,null,null,null,null,null,null,null,null,null,null,null,null,null,null,null,null,null,null,null,null,null,null,null,19411,93.85,1000]
[null,null,null,null,null,null,null,null,null,null,null,null,null,null,null,null,null,null,null,null,null,null,null,null,"Элементы орнамента (6x12)",null,1000]
[null,null,null,null,null,null,null,null,null,null,null,null,null,null,null,null,null,null,null,null,null,null,null,null,null,null,1000]
[null,null,null,null,null,null,null,null,null,null,null,null,null,null,null,null,null,null,null,null,null,null,null,null,19084,36.69,1000]
[null,null,null,null,null,null,null,null,null,null,null,null,null,null,null,null,null,null,null,null,null,null,null,null,19085,37.96,1000]
[null,null,null,null,null,null,null,null,null,null,null,null,null,null,null,null,null,null,null,null,null,null,null,null,19086,41.78,1000]
[null,null,null,null,null,null,null,null,null,null,null,null,null,null,null,null,null,null,null,null,null,null,null,null,19087,52.8,1000]
[null,null,null,null,null,null,null,null,null,null,null,null,null,null,null,null,null,null,null,null,null,null,null,null,19088,66.33,1000]
[null,null,null,null,null,null,null,null,null,null,null,null,null,null,null,null,null,null,null,null,null,null,null,null,19089,79.010000000000005,1000]
[null,null,null,null,null,null,null,null,null,null,null,null,null,null,null,null,null,null,null,null,null,null,null,null,19090,85.37,1000]
[null,null,null,null,null,null,null,null,null,null,null,null,null,null,null,null,null,null,null,null,null,null,null,null,126700,78.760000000000005,1000]
[null,null,null,null,null,null,null,null,null,null,null,null,null,null,null,null,null,null,null,null,null,null,null,null,"Элементы орнамента (12x12)",null,1000]
[null,null,null,null,null,null,null,null,null,null,null,null,null,null,null,null,null,null,null,null,null,null,null,null,null,null,1000]
[null,null,null,null,null,null,null,null,null,null,null,null,null,null,null,null,null,null,null,null,null,null,null,null,19407,70.62,1000]
[null,null,null,null,null,null,null,null,null,null,null,null,null,null,null,null,null,null,null,null,null,null,null,null,19408,59.84,1000]
[null,null,null,null,null,null,null,null,null,null,null,null,null,null,null,null,null,null,null,null,null,null,null,null,19410,113.09,1000]
[null,null,null,null,null,null,null,null,null,null,null,null,null,null,null,null,null,null,null,null,null,null,null,null,19418,167.38,1000]
[null,null,null,null,null,null,null,null,null,null,null,null,null,null,null,null,null,null,null,null,null,null,null,null,"Элементы орнамента (6x12)",null,1000]
[null,null,null,null,null,null,null,null,null,null,null,null,null,null,null,null,null,null,null,null,null,null,null,null,null,null,1000]
[null,null,null,null,null,null,null,null,null,null,null,null,null,null,null,null,null,null,null,null,null,null,null,null,9362,43,1000]
[null,null,null,null,null,null,null,null,null,null,null,null,null,null,null,null,null,null,null,null,null,null,null,null,9363,49,1000]
[null,null,null,null,null,null,null,null,null,null,null,null,null,null,null,null,null,null,null,null,null,null,null,null,9365,99,1000]
[null,null,null,null,null,null,null,null,null,null,null,null,null,null,null,null,null,null,null,null,null,null,null,null,19062,40.54,1000]
[null,null,null,null,null,null,null,null,null,null,null,null,null,null,null,null,null,null,null,null,null,null,null,null,19063,43.46,1000]
[null,null,null,null,null,null,null,null,null,null,null,null,null,null,null,null,null,null,null,null,null,null,null,null,19064,41.42,1000]
[null,null,null,null,null,null,null,null,null,null,null,null,null,null,null,null,null,null,null,null,null,null,null,null,19065,48.61,1000]
[null,null,null,null,null,null,null,null,null,null,null,null,null,null,null,null,null,null,null,null,null,null,null,null,19068,57.42,1000]
[null,null,null,null,null,null,null,null,null,null,null,null,null,null,null,null,null,null,null,null,null,null,null,null,19091,50.85,1000]
[null,null,null,null,null,null,null,null,null,null,null,null,null,null,null,null,null,null,null,null,null,null,null,null,19092,59.11,1000]
[null,null,null,null,null,null,null,null,null,null,null,null,null,null,null,null,null,null,null,null,null,null,null,null,19093,67.88,1000]
[null,null,null,null,null,null,null,null,null,null,null,null,null,null,null,null,null,null,null,null,null,null,null,null,19094,83.91,1000]
[null,null,null,null,null,null,null,null,null,null,null,null,null,null,null,null,null,null,null,null,null,null,null,null,19095,97.56,1000]
[null,null,null,null,null,null,null,null,null,null,null,null,null,null,null,null,null,null,null,null,null,null,null,null,"Элементы орнамента (12x6)",null,1000]
[null,null,null,null,null,null,null,null,null,null,null,null,null,null,null,null,null,null,null,null,null,null,null,null,null,null,1000]
[null,null,null,null,null,null,null,null,null,null,null,null,null,null,null,null,null,null,null,null,null,null,null,null,"9373 (12х6 гл.)",38.5,1000]
[null,null,null,null,null,null,null,null,null,null,null,null,null,null,null,null,null,null,null,null,null,null,null,null,"9376 (12х6 гл.)",47,1000]
[null,null,null,null,null,null,null,null,null,null,null,null,null,null,null,null,null,null,null,null,null,null,null,null,"9378 (12х6 гл.)",104.5,1000]
[null,null,null,null,null,null,null,null,null,null,null,null,null,null,null,null,null,null,null,null,null,null,null,null,"9574 (12х6 гл.)",38.5,1000]
[null,null,null,null,null,null,null,null,null,null,null,null,null,null,null,null,null,null,null,null,null,null,null,null,"9576 (12х6 гл.)",38.5,1000]
[null,null,null,null,null,null,null,null,null,null,null,null,null,null,null,null,null,null,null,null,null,null,null,null,"9774 (12х6-29)",36,1000]
[null,null,null,null,null,null,null,null,null,null,null,null,null,null,null,null,null,null,null,null,null,null,null,null,19073,31.59,1000]
[null,null,null,null,null,null,null,null,null,null,null,null,null,null,null,null,null,null,null,null,null,null,null,null,19074,36.450000000000003,1000]
[null,null,null,null,null,null,null,null,null,null,null,null,null,null,null,null,null,null,null,null,null,null,null,null,"19074 (полоса 12х6 глад.)",29.9,1000]
[null,null,null,null,null,null,null,null,null,null,null,null,null,null,null,null,null,null,null,null,null,null,null,null,19075,null,1000]
[null,null,null,null,null,null,null,null,null,null,null,null,null,null,null,null,null,null,null,null,null,null,null,null,19076,41.91,1000]
[null,null,null,null,null,null,null,null,null,null,null,null,null,null,null,null,null,null,null,null,null,null,null,null,19077,46.13,1000]
[null,null,null,null,null,null,null,null,null,null,null,null,null,null,null,null,null,null,null,null,null,null,null,null,19078,49.84,1000]
[null,null,null,null,null,null,null,null,null,null,null,null,null,null,null,null,null,null,null,null,null,null,null,null,19079,54.3,1000]
[null,null,null,null,null,null,null,null,null,null,null,null,null,null,null,null,null,null,null,null,null,null,null,null,"Элементы орнамента (12x12)",null,1000]
[null,null,null,null,null,null,null,null,null,null,null,null,null,null,null,null,null,null,null,null,null,null,null,null,null,null,1000]
[null,null,null,null,null,null,null,null,null,null,null,null,null,null,null,null,null,null,null,null,null,null,null,null,19014,57.53,1000]
[null,null,null,null,null,null,null,null,null,null,null,null,null,null,null,null,null,null,null,null,null,null,null,null,19404,58.22,1000]
[null,null,null,null,null,null,null,null,null,null,null,null,null,null,null,null,null,null,null,null,null,null,null,null,19405,64.16,1000]
[null,null,null,null,null,null,null,null,null,null,null,null,null,null,null,null,null,null,null,null,null,null,null,null,"Элементы орнамента (6x12)",null,1000]
[null,null,null,null,null,null,null,null,null,null,null,null,null,null,null,null,null,null,null,null,null,null,null,null,null,null,1000]
[null,null,null,null,null,null,null,null,null,null,null,null,null,null,null,null,null,null,null,null,null,null,null,null,19032,43.61,1000]
[null,null,null,null,null,null,null,null,null,null,null,null,null,null,null,null,null,null,null,null,null,null,null,null,19033,47.7,1000]
[null,null,null,null,null,null,null,null,null,null,null,null,null,null,null,null,null,null,null,null,null,null,null,null,19034,49.13,1000]
[null,null,null,null,null,null,null,null,null,null,null,null,null,null,null,null,null,null,null,null,null,null,null,null,"Элементы орнамента (12x12)",null,1000]
[null,null,null,null,null,null,null,null,null,null,null,null,null,null,null,null,null,null,null,null,null,null,null,null,null,null,1000]
[null,null,null,null,null,null,null,null,null,null,null,null,null,null,null,null,null,null,null,null,null,null,null,null,19400,46.57,1000]
[null,null,null,null,null,null,null,null,null,null,null,null,null,null,null,null,null,null,null,null,null,null,null,null,"19400 (кв. 12 гладкий)",38.9,1000]
[null,null,null,null,null,null,null,null,null,null,null,null,null,null,null,null,null,null,null,null,null,null,null,null,19401,52.21,1000]
[null,null,null,null,null,null,null,null,null,null,null,null,null,null,null,null,null,null,null,null,null,null,null,null,"19401 (кв. 12 гладкий)",47.98,1000]
[null,null,null,null,null,null,null,null,null,null,null,null,null,null,null,null,null,null,null,null,null,null,null,null,19402,62.94,1000]
[null,null,null,null,null,null,null,null,null,null,null,null,null,null,null,null,null,null,null,null,null,null,null,null,19403,72.94,1000]
[null,null,null,null,null,null,null,null,null,null,null,null,null,null,null,null,null,null,null,null,null,null,null,null,"19403 (кв. 12 гладкий)",67.58,1000]
[null,null,null,null,null,null,null,null,null,null,null,null,null,null,null,null,null,null,null,null,null,null,null,null,19412,83.56,1000]
[null,null,null,null,null,null,null,null,null,null,null,null,null,null,null,null,null,null,null,null,null,null,null,null,19413,99.3,1000]
[null,null,null,null,null,null,null,null,null,null,null,null,null,null,null,null,null,null,null,null,null,null,null,null,19414,64.739999999999995,1000]
[null,null,null,null,null,null,null,null,null,null,null,null,null,null,null,null,null,null,null,null,null,null,null,null,19416,107.87,1000]
[null,null,null,null,null,null,null,null,null,null,null,null,null,null,null,null,null,null,null,null,null,null,null,null,"Кольца",null,1000]
[null,null,null,null,null,null,null,null,null,null,null,null,null,null,null,null,null,null,null,null,null,null,null,null,"Кольцо (12х6 гл) D100 мм",29.5,1000]
[null,null,null,null,null,null,null,null,null,null,null,null,null,null,null,null,null,null,null,null,null,null,null,null,"Кольцо (12х12 гл) D100 мм",55,1000]
[null,null,null,null,null,null,null,null,null,null,null,null,null,null,null,null,null,null,null,null,null,null,null,null,"Кольцо (12х6 гл) D130 мм",40,1000]
[null,null,null,null,null,null,null,null,null,null,null,null,null,null,null,null,null,null,null,null,null,null,null,null,"Кольцо (12х12 гл) D130 мм",65,1000]